{"text_format":"3","workbook":"xlsx","n_sheets":2,"sheets":["Início","Calendário familiar"],"not_rendered":{"images":2,"defined_names":15},"read":"whole","date_system":"1900"}

{"sheet":"Início","index":0,"n_rows":7,"n_cols":2,"rows_kept":7}
[null,"SOBRE ESTE MODELO"]
[null,"Lembre-se das datas importantes e faça anotações com este Calendário Familiar."]
[null,"Personalize o título do calendário e selecione o ano."]
[null,"Cada calendário do mês é atualizado automaticamente."]
[null,"Observação: "]
[null,"Instruções adicionais foram fornecidas na coluna A da planilha CALENDÁRIO FAMILIAR. Este texto foi ocultado intencionalmente. Para removê-lo, selecione a coluna A e selecione Excluir. Para reexibir o texto, selecione a coluna A e altere a cor da fonte."]
[null,"Saiba mais sobre tabelas pressionando Shift e F10 em uma tabela, selecione a opção TABELA e selecione TEXTO ALTERNATIVO"]

{"sheet":"Calendário familiar","index":1,"n_rows":49,"n_cols":38,"rows_kept":49,"merged":[[2,3,2,29],[2,30,2,34],[2,37,2,39],[5,3,5,6],[5,7,5,16],[5,20,5,34],[6,3,6,6],[6,7,6,16],[6,20,6,34],[7,3,7,6],[7,7,7,16],[7,20,7,34],[8,3,8,6],[8,7,8,16],[8,20,8,34],[9,3,9,6],[9,7,9,16],[9,20,9,34],[10,3,10,6],[10,7,10,16],[10,20,10,34],[11,3,11,6],[11,7,11,16],[11,20,11,34],[12,3,12,6],[12,7,12,16],[12,20,12,34],[13,3,13,6],[13,7,13,16],[13,20,13,34],[14,3,14,6],[14,7,14,16],[14,20,14,34],[15,3,15,6],[15,7,15,16],[15,20,15,34],[16,3,16,6],[16,7,16,16],[16,20,16,34],[17,3,17,6],[17,7,17,16],[17,20,17,34],[18,3,18,6],[18,7,18,16],[18,20,18,34],[19,3,19,6],[19,7,19,16],[19,20,19,34],[20,3,20,4],[21,3,21,4],[23,2,23,8],[23,11,23,17],[23,20,23,26],[23,29,23,35],[32,2,32,8],[32,11,32,17],[32,20,32,26],[32,29,32,35],[41,2,41,8],[41,11,41,17],[41,20,41,26],[41,29,41,35]]}
["Crie um Calendário da Família para qualquer ano nesta planilha. Instruções úteis sobre como usar esta planilha estão nas células desta coluna. A próxima instrução está na célula A3."]
[]
["Personalize o título do calendário na célula D3 e digite o ano na célula AE3. As dicas estão na célula AL3. A próxima instrução está na célula A5.",null,null,"O Calendário da Família Costa",{"$nulls":26},{"$f":"YEAR(TODAY())","v":2019},{"$nulls":6},"Dica: Clique no controle giratório para alterar o ano do calendário nesta célula."]
[]
["O rótulo de Datas Importantes está na célula D5 e o de Anotações na U5. Insira datas importantes nas células D6 à D20, ocasiões ou eventos nas células H6 à H20 e anotações nas células U6 à U20. A próxima instrução está na célula A23.",null,null,"Datas importantes",{"$nulls":16},"Anotações"]
[{"$nulls":3},{"$f":"DATE(YEAR(TODAY()),1,1)","v":"2019-01-01"},{"$nulls":3},"Dia de Ano Novo"]
[{"$nulls":3},{"$f":"DATE(YEAR(TODAY()),3,25)","v":"2019-03-25"},{"$nulls":3},"Aniversário do Marcelo"]
{"$rows_empty":15}
["O calendário anual está nas células C24 à AJ49, o calendário de Janeiro nas células C25 à I31, o calendário de Fevereiro nas células L25 à R31, o calendário de Março nas células U25 à AA31 e o calendário de Abril nas células AD25 à AJ31."]
["Os nomes dos Meses estão nesta linha. O rótulo de Janeiro está na célula C24, o de Fevereiro na L24, o de Março na U24 e o de Abril na AD24.",null,{"$f":"DATE(AnoDoCalendário,1,1)","v":"2019-01-01"},{"$nulls":8},{"$f":"DATE(AnoDoCalendário,2,1)","v":"2019-02-01"},{"$nulls":8},{"$f":"DATE(AnoDoCalendário,3,1)","v":"2019-03-01"},{"$nulls":8},{"$f":"DATE(AnoDoCalendário,4,1)","v":"2019-04-01"}]
["Os nomes dos Dias da Semana estão nesta linha. Os nomes dos dias da semana de Janeiro estão nas células C25 à I25, os de Fevereiro nas células L25 à R25, os de Março nas células U25 à AA25 e os de Abril nas células AD25 à AJ25.",null,"Dom","Seg","Ter","Qua","Qui","Sex","Sab",null,null,"Dom","Seg","Ter","Qua","Qui","Sex","Sab",null,null,"Dom","Seg","Ter","Qua","Qui","Sex","Sab",null,null,"Dom","Seg","Ter","Qua","Qui","Sex","Sab"]
["As Datas são atualizadas automaticamente nesta linha. As datas de Janeiro estão nas células à direita, células C26 à I31, as Fevereiro nas células L26 à R31, as de Março nas células U26 à AA31 e as de Abril nas células AD26 à AJ31. A próxima instrução está na célula A32.",null,{"$f":"IF(DAY(JanDom1)=1,\"\",IF(AND(YEAR(JanDom1+1)=AnoDoCalendário,MONTH(JanDom1+1)=1),JanDom1+1,\"\"))","v":""},{"$f":"IF(DAY(JanDom1)=1,\"\",IF(AND(YEAR(JanDom1+2)=AnoDoCalendário,MONTH(JanDom1+2)=1),JanDom1+2,\"\"))","v":""},{"$f":"IF(DAY(JanDom1)=1,\"\",IF(AND(YEAR(JanDom1+3)=AnoDoCalendário,MONTH(JanDom1+3)=1),JanDom1+3,\"\"))","v":"2019-01-01"},{"$f":"IF(DAY(JanDom1)=1,\"\",IF(AND(YEAR(JanDom1+4)=AnoDoCalendário,MONTH(JanDom1+4)=1),JanDom1+4,\"\"))","v":"2019-01-02"},{"$f":"IF(DAY(JanDom1)=1,\"\",IF(AND(YEAR(JanDom1+5)=AnoDoCalendário,MONTH(JanDom1+5)=1),JanDom1+5,\"\"))","v":"2019-01-03"},{"$f":"IF(DAY(JanDom1)=1,\"\",IF(AND(YEAR(JanDom1+6)=AnoDoCalendário,MONTH(JanDom1+6)=1),JanDom1+6,\"\"))","v":"2019-01-04"},{"$f":"IF(DAY(JanDom1)=1,IF(AND(YEAR(JanDom1)=AnoDoCalendário,MONTH(JanDom1)=1),JanDom1,\"\"),IF(AND(YEAR(JanDom1+7)=AnoDoCalendário,MONTH(JanDom1+7)=1),JanDom1+7,\"\"))","v":"2019-01-05"},null,null,{"$f":"IF(DAY(FevDom1)=1,\"\",IF(AND(YEAR(FevDom1+1)=AnoDoCalendário,MONTH(FevDom1+1)=2),FevDom1+1,\"\"))","v":""},{"$f":"IF(DAY(FevDom1)=1,\"\",IF(AND(YEAR(FevDom1+2)=AnoDoCalendário,MONTH(FevDom1+2)=2),FevDom1+2,\"\"))","v":""},{"$f":"IF(DAY(FevDom1)=1,\"\",IF(AND(YEAR(FevDom1+3)=AnoDoCalendário,MONTH(FevDom1+3)=2),FevDom1+3,\"\"))","v":""},{"$f":"IF(DAY(FevDom1)=1,\"\",IF(AND(YEAR(FevDom1+4)=AnoDoCalendário,MONTH(FevDom1+4)=2),FevDom1+4,\"\"))","v":""},{"$f":"IF(DAY(FevDom1)=1,\"\",IF(AND(YEAR(FevDom1+5)=AnoDoCalendário,MONTH(FevDom1+5)=2),FevDom1+5,\"\"))","v":""},{"$f":"IF(DAY(FevDom1)=1,\"\",IF(AND(YEAR(FevDom1+6)=AnoDoCalendário,MONTH(FevDom1+6)=2),FevDom1+6,\"\"))","v":"2019-02-01"},{"$f":"IF(DAY(FevDom1)=1,IF(AND(YEAR(FevDom1)=AnoDoCalendário,MONTH(FevDom1)=2),FevDom1,\"\"),IF(AND(YEAR(FevDom1+7)=AnoDoCalendário,MONTH(FevDom1+7)=2),FevDom1+7,\"\"))","v":"2019-02-02"},null,null,{"$f":"IF(DAY(MarDom1)=1,\"\",IF(AND(YEAR(MarDom1+1)=AnoDoCalendário,MONTH(MarDom1+1)=3),MarDom1+1,\"\"))","v":""},{"$f":"IF(DAY(MarDom1)=1,\"\",IF(AND(YEAR(MarDom1+2)=AnoDoCalendário,MONTH(MarDom1+2)=3),MarDom1+2,\"\"))","v":""},{"$f":"IF(DAY(MarDom1)=1,\"\",IF(AND(YEAR(MarDom1+3)=AnoDoCalendário,MONTH(MarDom1+3)=3),MarDom1+3,\"\"))","v":""},{"$f":"IF(DAY(MarDom1)=1,\"\",IF(AND(YEAR(MarDom1+4)=AnoDoCalendário,MONTH(MarDom1+4)=3),MarDom1+4,\"\"))","v":""},{"$f":"IF(DAY(MarDom1)=1,\"\",IF(AND(YEAR(MarDom1+5)=AnoDoCalendário,MONTH(MarDom1+5)=3),MarDom1+5,\"\"))","v":""},{"$f":"IF(DAY(MarDom1)=1,\"\",IF(AND(YEAR(MarDom1+6)=AnoDoCalendário,MONTH(MarDom1+6)=3),MarDom1+6,\"\"))","v":"2019-03-01"},{"$f":"IF(DAY(MarDom1)=1,IF(AND(YEAR(MarDom1)=AnoDoCalendário,MONTH(MarDom1)=3),MarDom1,\"\"),IF(AND(YEAR(MarDom1+7)=AnoDoCalendário,MONTH(MarDom1+7)=3),MarDom1+7,\"\"))","v":"2019-03-02"},null,null,{"$f":"IF(DAY(AbrDom1)=1,\"\",IF(AND(YEAR(AbrDom1+1)=AnoDoCalendário,MONTH(AbrDom1+1)=4),AbrDom1+1,\"\"))","v":""},{"$f":"IF(DAY(AbrDom1)=1,\"\",IF(AND(YEAR(AbrDom1+2)=AnoDoCalendário,MONTH(AbrDom1+2)=4),AbrDom1+2,\"\"))","v":"2019-04-01"},{"$f":"IF(DAY(AbrDom1)=1,\"\",IF(AND(YEAR(AbrDom1+3)=AnoDoCalendário,MONTH(AbrDom1+3)=4),AbrDom1+3,\"\"))","v":"2019-04-02"},{"$f":"IF(DAY(AbrDom1)=1,\"\",IF(AND(YEAR(AbrDom1+4)=AnoDoCalendário,MONTH(AbrDom1+4)=4),AbrDom1+4,\"\"))","v":"2019-04-03"},{"$f":"IF(DAY(AbrDom1)=1,\"\",IF(AND(YEAR(AbrDom1+5)=AnoDoCalendário,MONTH(AbrDom1+5)=4),AbrDom1+5,\"\"))","v":"2019-04-04"},{"$f":"IF(DAY(AbrDom1)=1,\"\",IF(AND(YEAR(AbrDom1+6)=AnoDoCalendário,MONTH(AbrDom1+6)=4),AbrDom1+6,\"\"))","v":"2019-04-05"},{"$f":"IF(DAY(AbrDom1)=1,IF(AND(YEAR(AbrDom1)=AnoDoCalendário,MONTH(AbrDom1)=4),AbrDom1,\"\"),IF(AND(YEAR(AbrDom1+7)=AnoDoCalendário,MONTH(AbrDom1+7)=4),AbrDom1+7,\"\"))","v":"2019-04-06"}]
[null,null,{"$f":"IF(DAY(JanDom1)=1,IF(AND(YEAR(JanDom1+1)=AnoDoCalendário,MONTH(JanDom1+1)=1),JanDom1+1,\"\"),IF(AND(YEAR(JanDom1+8)=AnoDoCalendário,MONTH(JanDom1+8)=1),JanDom1+8,\"\"))","v":"2019-01-06"},{"$f":"IF(DAY(JanDom1)=1,IF(AND(YEAR(JanDom1+2)=AnoDoCalendário,MONTH(JanDom1+2)=1),JanDom1+2,\"\"),IF(AND(YEAR(JanDom1+9)=AnoDoCalendário,MONTH(JanDom1+9)=1),JanDom1+9,\"\"))","v":"2019-01-07"},{"$f":"IF(DAY(JanDom1)=1,IF(AND(YEAR(JanDom1+3)=AnoDoCalendário,MONTH(JanDom1+3)=1),JanDom1+3,\"\"),IF(AND(YEAR(JanDom1+10)=AnoDoCalendário,MONTH(JanDom1+10)=1),JanDom1+10,\"\"))","v":"2019-01-08"},{"$f":"IF(DAY(JanDom1)=1,IF(AND(YEAR(JanDom1+4)=AnoDoCalendário,MONTH(JanDom1+4)=1),JanDom1+4,\"\"),IF(AND(YEAR(JanDom1+11)=AnoDoCalendário,MONTH(JanDom1+11)=1),JanDom1+11,\"\"))","v":"2019-01-09"},{"$f":"IF(DAY(JanDom1)=1,IF(AND(YEAR(JanDom1+5)=AnoDoCalendário,MONTH(JanDom1+5)=1),JanDom1+5,\"\"),IF(AND(YEAR(JanDom1+12)=AnoDoCalendário,MONTH(JanDom1+12)=1),JanDom1+12,\"\"))","v":"2019-01-10"},{"$f":"IF(DAY(JanDom1)=1,IF(AND(YEAR(JanDom1+6)=AnoDoCalendário,MONTH(JanDom1+6)=1),JanDom1+6,\"\"),IF(AND(YEAR(JanDom1+13)=AnoDoCalendário,MONTH(JanDom1+13)=1),JanDom1+13,\"\"))","v":"2019-01-11"},{"$f":"IF(DAY(JanDom1)=1,IF(AND(YEAR(JanDom1+7)=AnoDoCalendário,MONTH(JanDom1+7)=1),JanDom1+7,\"\"),IF(AND(YEAR(JanDom1+14)=AnoDoCalendário,MONTH(JanDom1+14)=1),JanDom1+14,\"\"))","v":"2019-01-12"},null,null,{"$f":"IF(DAY(FevDom1)=1,IF(AND(YEAR(FevDom1+1)=AnoDoCalendário,MONTH(FevDom1+1)=2),FevDom1+1,\"\"),IF(AND(YEAR(FevDom1+8)=AnoDoCalendário,MONTH(FevDom1+8)=2),FevDom1+8,\"\"))","v":"2019-02-03"},{"$f":"IF(DAY(FevDom1)=1,IF(AND(YEAR(FevDom1+2)=AnoDoCalendário,MONTH(FevDom1+2)=2),FevDom1+2,\"\"),IF(AND(YEAR(FevDom1+9)=AnoDoCalendário,MONTH(FevDom1+9)=2),FevDom1+9,\"\"))","v":"2019-02-04"},{"$f":"IF(DAY(FevDom1)=1,IF(AND(YEAR(FevDom1+3)=AnoDoCalendário,MONTH(FevDom1+3)=2),FevDom1+3,\"\"),IF(AND(YEAR(FevDom1+10)=AnoDoCalendário,MONTH(FevDom1+10)=2),FevDom1+10,\"\"))","v":"2019-02-05"},{"$f":"IF(DAY(FevDom1)=1,IF(AND(YEAR(FevDom1+4)=AnoDoCalendário,MONTH(FevDom1+4)=2),FevDom1+4,\"\"),IF(AND(YEAR(FevDom1+11)=AnoDoCalendário,MONTH(FevDom1+11)=2),FevDom1+11,\"\"))","v":"2019-02-06"},{"$f":"IF(DAY(FevDom1)=1,IF(AND(YEAR(FevDom1+5)=AnoDoCalendário,MONTH(FevDom1+5)=2),FevDom1+5,\"\"),IF(AND(YEAR(FevDom1+12)=AnoDoCalendário,MONTH(FevDom1+12)=2),FevDom1+12,\"\"))","v":"2019-02-07"},{"$f":"IF(DAY(FevDom1)=1,IF(AND(YEAR(FevDom1+6)=AnoDoCalendário,MONTH(FevDom1+6)=2),FevDom1+6,\"\"),IF(AND(YEAR(FevDom1+13)=AnoDoCalendário,MONTH(FevDom1+13)=2),FevDom1+13,\"\"))","v":"2019-02-08"},{"$f":"IF(DAY(FevDom1)=1,IF(AND(YEAR(FevDom1+7)=AnoDoCalendário,MONTH(FevDom1+7)=2),FevDom1+7,\"\"),IF(AND(YEAR(FevDom1+14)=AnoDoCalendário,MONTH(FevDom1+14)=2),FevDom1+14,\"\"))","v":"2019-02-09"},null,null,{"$f":"IF(DAY(MarDom1)=1,IF(AND(YEAR(MarDom1+1)=AnoDoCalendário,MONTH(MarDom1+1)=3),MarDom1+1,\"\"),IF(AND(YEAR(MarDom1+8)=AnoDoCalendário,MONTH(MarDom1+8)=3),MarDom1+8,\"\"))","v":"2019-03-03"},{"$f":"IF(DAY(MarDom1)=1,IF(AND(YEAR(MarDom1+2)=AnoDoCalendário,MONTH(MarDom1+2)=3),MarDom1+2,\"\"),IF(AND(YEAR(MarDom1+9)=AnoDoCalendário,MONTH(MarDom1+9)=3),MarDom1+9,\"\"))","v":"2019-03-04"},{"$f":"IF(DAY(MarDom1)=1,IF(AND(YEAR(MarDom1+3)=AnoDoCalendário,MONTH(MarDom1+3)=3),MarDom1+3,\"\"),IF(AND(YEAR(MarDom1+10)=AnoDoCalendário,MONTH(MarDom1+10)=3),MarDom1+10,\"\"))","v":"2019-03-05"},{"$f":"IF(DAY(MarDom1)=1,IF(AND(YEAR(MarDom1+4)=AnoDoCalendário,MONTH(MarDom1+4)=3),MarDom1+4,\"\"),IF(AND(YEAR(MarDom1+11)=AnoDoCalendário,MONTH(MarDom1+11)=3),MarDom1+11,\"\"))","v":"2019-03-06"},{"$f":"IF(DAY(MarDom1)=1,IF(AND(YEAR(MarDom1+5)=AnoDoCalendário,MONTH(MarDom1+5)=3),MarDom1+5,\"\"),IF(AND(YEAR(MarDom1+12)=AnoDoCalendário,MONTH(MarDom1+12)=3),MarDom1+12,\"\"))","v":"2019-03-07"},{"$f":"IF(DAY(MarDom1)=1,IF(AND(YEAR(MarDom1+6)=AnoDoCalendário,MONTH(MarDom1+6)=3),MarDom1+6,\"\"),IF(AND(YEAR(MarDom1+13)=AnoDoCalendário,MONTH(MarDom1+13)=3),MarDom1+13,\"\"))","v":"2019-03-08"},{"$f":"IF(DAY(MarDom1)=1,IF(AND(YEAR(MarDom1+7)=AnoDoCalendário,MONTH(MarDom1+7)=3),MarDom1+7,\"\"),IF(AND(YEAR(MarDom1+14)=AnoDoCalendário,MONTH(MarDom1+14)=3),MarDom1+14,\"\"))","v":"2019-03-09"},null,null,{"$f":"IF(DAY(AbrDom1)=1,IF(AND(YEAR(AbrDom1+1)=AnoDoCalendário,MONTH(AbrDom1+1)=4),AbrDom1+1,\"\"),IF(AND(YEAR(AbrDom1+8)=AnoDoCalendário,MONTH(AbrDom1+8)=4),AbrDom1+8,\"\"))","v":"2019-04-07"},{"$f":"IF(DAY(AbrDom1)=1,IF(AND(YEAR(AbrDom1+2)=AnoDoCalendário,MONTH(AbrDom1+2)=4),AbrDom1+2,\"\"),IF(AND(YEAR(AbrDom1+9)=AnoDoCalendário,MONTH(AbrDom1+9)=4),AbrDom1+9,\"\"))","v":"2019-04-08"},{"$f":"IF(DAY(AbrDom1)=1,IF(AND(YEAR(AbrDom1+3)=AnoDoCalendário,MONTH(AbrDom1+3)=4),AbrDom1+3,\"\"),IF(AND(YEAR(AbrDom1+10)=AnoDoCalendário,MONTH(AbrDom1+10)=4),AbrDom1+10,\"\"))","v":"2019-04-09"},{"$f":"IF(DAY(AbrDom1)=1,IF(AND(YEAR(AbrDom1+4)=AnoDoCalendário,MONTH(AbrDom1+4)=4),AbrDom1+4,\"\"),IF(AND(YEAR(AbrDom1+11)=AnoDoCalendário,MONTH(AbrDom1+11)=4),AbrDom1+11,\"\"))","v":"2019-04-10"},{"$f":"IF(DAY(AbrDom1)=1,IF(AND(YEAR(AbrDom1+5)=AnoDoCalendário,MONTH(AbrDom1+5)=4),AbrDom1+5,\"\"),IF(AND(YEAR(AbrDom1+12)=AnoDoCalendário,MONTH(AbrDom1+12)=4),AbrDom1+12,\"\"))","v":"2019-04-11"},{"$f":"IF(DAY(AbrDom1)=1,IF(AND(YEAR(AbrDom1+6)=AnoDoCalendário,MONTH(AbrDom1+6)=4),AbrDom1+6,\"\"),IF(AND(YEAR(AbrDom1+13)=AnoDoCalendário,MONTH(AbrDom1+13)=4),AbrDom1+13,\"\"))","v":"2019-04-12"},{"$f":"IF(DAY(AbrDom1)=1,IF(AND(YEAR(AbrDom1+7)=AnoDoCalendário,MONTH(AbrDom1+7)=4),AbrDom1+7,\"\"),IF(AND(YEAR(AbrDom1+14)=AnoDoCalendário,MONTH(AbrDom1+14)=4),AbrDom1+14,\"\"))","v":"2019-04-13"}]
[null,null,{"$f":"IF(DAY(JanDom1)=1,IF(AND(YEAR(JanDom1+8)=AnoDoCalendário,MONTH(JanDom1+8)=1),JanDom1+8,\"\"),IF(AND(YEAR(JanDom1+15)=AnoDoCalendário,MONTH(JanDom1+15)=1),JanDom1+15,\"\"))","v":"2019-01-13"},{"$f":"IF(DAY(JanDom1)=1,IF(AND(YEAR(JanDom1+9)=AnoDoCalendário,MONTH(JanDom1+9)=1),JanDom1+9,\"\"),IF(AND(YEAR(JanDom1+16)=AnoDoCalendário,MONTH(JanDom1+16)=1),JanDom1+16,\"\"))","v":"2019-01-14"},{"$f":"IF(DAY(JanDom1)=1,IF(AND(YEAR(JanDom1+10)=AnoDoCalendário,MONTH(JanDom1+10)=1),JanDom1+10,\"\"),IF(AND(YEAR(JanDom1+17)=AnoDoCalendário,MONTH(JanDom1+17)=1),JanDom1+17,\"\"))","v":"2019-01-15"},{"$f":"IF(DAY(JanDom1)=1,IF(AND(YEAR(JanDom1+11)=AnoDoCalendário,MONTH(JanDom1+11)=1),JanDom1+11,\"\"),IF(AND(YEAR(JanDom1+18)=AnoDoCalendário,MONTH(JanDom1+18)=1),JanDom1+18,\"\"))","v":"2019-01-16"},{"$f":"IF(DAY(JanDom1)=1,IF(AND(YEAR(JanDom1+12)=AnoDoCalendário,MONTH(JanDom1+12)=1),JanDom1+12,\"\"),IF(AND(YEAR(JanDom1+19)=AnoDoCalendário,MONTH(JanDom1+19)=1),JanDom1+19,\"\"))","v":"2019-01-17"},{"$f":"IF(DAY(JanDom1)=1,IF(AND(YEAR(JanDom1+13)=AnoDoCalendário,MONTH(JanDom1+13)=1),JanDom1+13,\"\"),IF(AND(YEAR(JanDom1+20)=AnoDoCalendário,MONTH(JanDom1+20)=1),JanDom1+20,\"\"))","v":"2019-01-18"},{"$f":"IF(DAY(JanDom1)=1,IF(AND(YEAR(JanDom1+14)=AnoDoCalendário,MONTH(JanDom1+14)=1),JanDom1+14,\"\"),IF(AND(YEAR(JanDom1+21)=AnoDoCalendário,MONTH(JanDom1+21)=1),JanDom1+21,\"\"))","v":"2019-01-19"},null,null,{"$f":"IF(DAY(FevDom1)=1,IF(AND(YEAR(FevDom1+8)=AnoDoCalendário,MONTH(FevDom1+8)=2),FevDom1+8,\"\"),IF(AND(YEAR(FevDom1+15)=AnoDoCalendário,MONTH(FevDom1+15)=2),FevDom1+15,\"\"))","v":"2019-02-10"},{"$f":"IF(DAY(FevDom1)=1,IF(AND(YEAR(FevDom1+9)=AnoDoCalendário,MONTH(FevDom1+9)=2),FevDom1+9,\"\"),IF(AND(YEAR(FevDom1+16)=AnoDoCalendário,MONTH(FevDom1+16)=2),FevDom1+16,\"\"))","v":"2019-02-11"},{"$f":"IF(DAY(FevDom1)=1,IF(AND(YEAR(FevDom1+10)=AnoDoCalendário,MONTH(FevDom1+10)=2),FevDom1+10,\"\"),IF(AND(YEAR(FevDom1+17)=AnoDoCalendário,MONTH(FevDom1+17)=2),FevDom1+17,\"\"))","v":"2019-02-12"},{"$f":"IF(DAY(FevDom1)=1,IF(AND(YEAR(FevDom1+11)=AnoDoCalendário,MONTH(FevDom1+11)=2),FevDom1+11,\"\"),IF(AND(YEAR(FevDom1+18)=AnoDoCalendário,MONTH(FevDom1+18)=2),FevDom1+18,\"\"))","v":"2019-02-13"},{"$f":"IF(DAY(FevDom1)=1,IF(AND(YEAR(FevDom1+12)=AnoDoCalendário,MONTH(FevDom1+12)=2),FevDom1+12,\"\"),IF(AND(YEAR(FevDom1+19)=AnoDoCalendário,MONTH(FevDom1+19)=2),FevDom1+19,\"\"))","v":"2019-02-14"},{"$f":"IF(DAY(FevDom1)=1,IF(AND(YEAR(FevDom1+13)=AnoDoCalendário,MONTH(FevDom1+13)=2),FevDom1+13,\"\"),IF(AND(YEAR(FevDom1+20)=AnoDoCalendário,MONTH(FevDom1+20)=2),FevDom1+20,\"\"))","v":"2019-02-15"},{"$f":"IF(DAY(FevDom1)=1,IF(AND(YEAR(FevDom1+14)=AnoDoCalendário,MONTH(FevDom1+14)=2),FevDom1+14,\"\"),IF(AND(YEAR(FevDom1+21)=AnoDoCalendário,MONTH(FevDom1+21)=2),FevDom1+21,\"\"))","v":"2019-02-16"},null,null,{"$f":"IF(DAY(MarDom1)=1,IF(AND(YEAR(MarDom1+8)=AnoDoCalendário,MONTH(MarDom1+8)=3),MarDom1+8,\"\"),IF(AND(YEAR(MarDom1+15)=AnoDoCalendário,MONTH(MarDom1+15)=3),MarDom1+15,\"\"))","v":"2019-03-10"},{"$f":"IF(DAY(MarDom1)=1,IF(AND(YEAR(MarDom1+9)=AnoDoCalendário,MONTH(MarDom1+9)=3),MarDom1+9,\"\"),IF(AND(YEAR(MarDom1+16)=AnoDoCalendário,MONTH(MarDom1+16)=3),MarDom1+16,\"\"))","v":"2019-03-11"},{"$f":"IF(DAY(MarDom1)=1,IF(AND(YEAR(MarDom1+10)=AnoDoCalendário,MONTH(MarDom1+10)=3),MarDom1+10,\"\"),IF(AND(YEAR(MarDom1+17)=AnoDoCalendário,MONTH(MarDom1+17)=3),MarDom1+17,\"\"))","v":"2019-03-12"},{"$f":"IF(DAY(MarDom1)=1,IF(AND(YEAR(MarDom1+11)=AnoDoCalendário,MONTH(MarDom1+11)=3),MarDom1+11,\"\"),IF(AND(YEAR(MarDom1+18)=AnoDoCalendário,MONTH(MarDom1+18)=3),MarDom1+18,\"\"))","v":"2019-03-13"},{"$f":"IF(DAY(MarDom1)=1,IF(AND(YEAR(MarDom1+12)=AnoDoCalendário,MONTH(MarDom1+12)=3),MarDom1+12,\"\"),IF(AND(YEAR(MarDom1+19)=AnoDoCalendário,MONTH(MarDom1+19)=3),MarDom1+19,\"\"))","v":"2019-03-14"},{"$f":"IF(DAY(MarDom1)=1,IF(AND(YEAR(MarDom1+13)=AnoDoCalendário,MONTH(MarDom1+13)=3),MarDom1+13,\"\"),IF(AND(YEAR(MarDom1+20)=AnoDoCalendário,MONTH(MarDom1+20)=3),MarDom1+20,\"\"))","v":"2019-03-15"},{"$f":"IF(DAY(MarDom1)=1,IF(AND(YEAR(MarDom1+14)=AnoDoCalendário,MONTH(MarDom1+14)=3),MarDom1+14,\"\"),IF(AND(YEAR(MarDom1+21)=AnoDoCalendário,MONTH(MarDom1+21)=3),MarDom1+21,\"\"))","v":"2019-03-16"},null,null,{"$f":"IF(DAY(AbrDom1)=1,IF(AND(YEAR(AbrDom1+8)=AnoDoCalendário,MONTH(AbrDom1+8)=4),AbrDom1+8,\"\"),IF(AND(YEAR(AbrDom1+15)=AnoDoCalendário,MONTH(AbrDom1+15)=4),AbrDom1+15,\"\"))","v":"2019-04-14"},{"$f":"IF(DAY(AbrDom1)=1,IF(AND(YEAR(AbrDom1+9)=AnoDoCalendário,MONTH(AbrDom1+9)=4),AbrDom1+9,\"\"),IF(AND(YEAR(AbrDom1+16)=AnoDoCalendário,MONTH(AbrDom1+16)=4),AbrDom1+16,\"\"))","v":"2019-04-15"},{"$f":"IF(DAY(AbrDom1)=1,IF(AND(YEAR(AbrDom1+10)=AnoDoCalendário,MONTH(AbrDom1+10)=4),AbrDom1+10,\"\"),IF(AND(YEAR(AbrDom1+17)=AnoDoCalendário,MONTH(AbrDom1+17)=4),AbrDom1+17,\"\"))","v":"2019-04-16"},{"$f":"IF(DAY(AbrDom1)=1,IF(AND(YEAR(AbrDom1+11)=AnoDoCalendário,MONTH(AbrDom1+11)=4),AbrDom1+11,\"\"),IF(AND(YEAR(AbrDom1+18)=AnoDoCalendário,MONTH(AbrDom1+18)=4),AbrDom1+18,\"\"))","v":"2019-04-17"},{"$f":"IF(DAY(AbrDom1)=1,IF(AND(YEAR(AbrDom1+12)=AnoDoCalendário,MONTH(AbrDom1+12)=4),AbrDom1+12,\"\"),IF(AND(YEAR(AbrDom1+19)=AnoDoCalendário,MONTH(AbrDom1+19)=4),AbrDom1+19,\"\"))","v":"2019-04-18"},{"$f":"IF(DAY(AbrDom1)=1,IF(AND(YEAR(AbrDom1+13)=AnoDoCalendário,MONTH(AbrDom1+13)=4),AbrDom1+13,\"\"),IF(AND(YEAR(AbrDom1+20)=AnoDoCalendário,MONTH(AbrDom1+20)=4),AbrDom1+20,\"\"))","v":"2019-04-19"},{"$f":"IF(DAY(AbrDom1)=1,IF(AND(YEAR(AbrDom1+14)=AnoDoCalendário,MONTH(AbrDom1+14)=4),AbrDom1+14,\"\"),IF(AND(YEAR(AbrDom1+21)=AnoDoCalendário,MONTH(AbrDom1+21)=4),AbrDom1+21,\"\"))","v":"2019-04-20"}]
[null,null,{"$f":"IF(DAY(JanDom1)=1,IF(AND(YEAR(JanDom1+15)=AnoDoCalendário,MONTH(JanDom1+15)=1),JanDom1+15,\"\"),IF(AND(YEAR(JanDom1+22)=AnoDoCalendário,MONTH(JanDom1+22)=1),JanDom1+22,\"\"))","v":"2019-01-20"},{"$f":"IF(DAY(JanDom1)=1,IF(AND(YEAR(JanDom1+16)=AnoDoCalendário,MONTH(JanDom1+16)=1),JanDom1+16,\"\"),IF(AND(YEAR(JanDom1+23)=AnoDoCalendário,MONTH(JanDom1+23)=1),JanDom1+23,\"\"))","v":"2019-01-21"},{"$f":"IF(DAY(JanDom1)=1,IF(AND(YEAR(JanDom1+17)=AnoDoCalendário,MONTH(JanDom1+17)=1),JanDom1+17,\"\"),IF(AND(YEAR(JanDom1+24)=AnoDoCalendário,MONTH(JanDom1+24)=1),JanDom1+24,\"\"))","v":"2019-01-22"},{"$f":"IF(DAY(JanDom1)=1,IF(AND(YEAR(JanDom1+18)=AnoDoCalendário,MONTH(JanDom1+18)=1),JanDom1+18,\"\"),IF(AND(YEAR(JanDom1+25)=AnoDoCalendário,MONTH(JanDom1+25)=1),JanDom1+25,\"\"))","v":"2019-01-23"},{"$f":"IF(DAY(JanDom1)=1,IF(AND(YEAR(JanDom1+19)=AnoDoCalendário,MONTH(JanDom1+19)=1),JanDom1+19,\"\"),IF(AND(YEAR(JanDom1+26)=AnoDoCalendário,MONTH(JanDom1+26)=1),JanDom1+26,\"\"))","v":"2019-01-24"},{"$f":"IF(DAY(JanDom1)=1,IF(AND(YEAR(JanDom1+20)=AnoDoCalendário,MONTH(JanDom1+20)=1),JanDom1+20,\"\"),IF(AND(YEAR(JanDom1+27)=AnoDoCalendário,MONTH(JanDom1+27)=1),JanDom1+27,\"\"))","v":"2019-01-25"},{"$f":"IF(DAY(JanDom1)=1,IF(AND(YEAR(JanDom1+21)=AnoDoCalendário,MONTH(JanDom1+21)=1),JanDom1+21,\"\"),IF(AND(YEAR(JanDom1+28)=AnoDoCalendário,MONTH(JanDom1+28)=1),JanDom1+28,\"\"))","v":"2019-01-26"},null,null,{"$f":"IF(DAY(FevDom1)=1,IF(AND(YEAR(FevDom1+15)=AnoDoCalendário,MONTH(FevDom1+15)=2),FevDom1+15,\"\"),IF(AND(YEAR(FevDom1+22)=AnoDoCalendário,MONTH(FevDom1+22)=2),FevDom1+22,\"\"))","v":"2019-02-17"},{"$f":"IF(DAY(FevDom1)=1,IF(AND(YEAR(FevDom1+16)=AnoDoCalendário,MONTH(FevDom1+16)=2),FevDom1+16,\"\"),IF(AND(YEAR(FevDom1+23)=AnoDoCalendário,MONTH(FevDom1+23)=2),FevDom1+23,\"\"))","v":"2019-02-18"},{"$f":"IF(DAY(FevDom1)=1,IF(AND(YEAR(FevDom1+17)=AnoDoCalendário,MONTH(FevDom1+17)=2),FevDom1+17,\"\"),IF(AND(YEAR(FevDom1+24)=AnoDoCalendário,MONTH(FevDom1+24)=2),FevDom1+24,\"\"))","v":"2019-02-19"},{"$f":"IF(DAY(FevDom1)=1,IF(AND(YEAR(FevDom1+18)=AnoDoCalendário,MONTH(FevDom1+18)=2),FevDom1+18,\"\"),IF(AND(YEAR(FevDom1+25)=AnoDoCalendário,MONTH(FevDom1+25)=2),FevDom1+25,\"\"))","v":"2019-02-20"},{"$f":"IF(DAY(FevDom1)=1,IF(AND(YEAR(FevDom1+19)=AnoDoCalendário,MONTH(FevDom1+19)=2),FevDom1+19,\"\"),IF(AND(YEAR(FevDom1+26)=AnoDoCalendário,MONTH(FevDom1+26)=2),FevDom1+26,\"\"))","v":"2019-02-21"},{"$f":"IF(DAY(FevDom1)=1,IF(AND(YEAR(FevDom1+20)=AnoDoCalendário,MONTH(FevDom1+20)=2),FevDom1+20,\"\"),IF(AND(YEAR(FevDom1+27)=AnoDoCalendário,MONTH(FevDom1+27)=2),FevDom1+27,\"\"))","v":"2019-02-22"},{"$f":"IF(DAY(FevDom1)=1,IF(AND(YEAR(FevDom1+21)=AnoDoCalendário,MONTH(FevDom1+21)=2),FevDom1+21,\"\"),IF(AND(YEAR(FevDom1+28)=AnoDoCalendário,MONTH(FevDom1+28)=2),FevDom1+28,\"\"))","v":"2019-02-23"},null,null,{"$f":"IF(DAY(MarDom1)=1,IF(AND(YEAR(MarDom1+15)=AnoDoCalendário,MONTH(MarDom1+15)=3),MarDom1+15,\"\"),IF(AND(YEAR(MarDom1+22)=AnoDoCalendário,MONTH(MarDom1+22)=3),MarDom1+22,\"\"))","v":"2019-03-17"},{"$f":"IF(DAY(MarDom1)=1,IF(AND(YEAR(MarDom1+16)=AnoDoCalendário,MONTH(MarDom1+16)=3),MarDom1+16,\"\"),IF(AND(YEAR(MarDom1+23)=AnoDoCalendário,MONTH(MarDom1+23)=3),MarDom1+23,\"\"))","v":"2019-03-18"},{"$f":"IF(DAY(MarDom1)=1,IF(AND(YEAR(MarDom1+17)=AnoDoCalendário,MONTH(MarDom1+17)=3),MarDom1+17,\"\"),IF(AND(YEAR(MarDom1+24)=AnoDoCalendário,MONTH(MarDom1+24)=3),MarDom1+24,\"\"))","v":"2019-03-19"},{"$f":"IF(DAY(MarDom1)=1,IF(AND(YEAR(MarDom1+18)=AnoDoCalendário,MONTH(MarDom1+18)=3),MarDom1+18,\"\"),IF(AND(YEAR(MarDom1+25)=AnoDoCalendário,MONTH(MarDom1+25)=3),MarDom1+25,\"\"))","v":"2019-03-20"},{"$f":"IF(DAY(MarDom1)=1,IF(AND(YEAR(MarDom1+19)=AnoDoCalendário,MONTH(MarDom1+19)=3),MarDom1+19,\"\"),IF(AND(YEAR(MarDom1+26)=AnoDoCalendário,MONTH(MarDom1+26)=3),MarDom1+26,\"\"))","v":"2019-03-21"},{"$f":"IF(DAY(MarDom1)=1,IF(AND(YEAR(MarDom1+20)=AnoDoCalendário,MONTH(MarDom1+20)=3),MarDom1+20,\"\"),IF(AND(YEAR(MarDom1+27)=AnoDoCalendário,MONTH(MarDom1+27)=3),MarDom1+27,\"\"))","v":"2019-03-22"},{"$f":"IF(DAY(MarDom1)=1,IF(AND(YEAR(MarDom1+21)=AnoDoCalendário,MONTH(MarDom1+21)=3),MarDom1+21,\"\"),IF(AND(YEAR(MarDom1+28)=AnoDoCalendário,MONTH(MarDom1+28)=3),MarDom1+28,\"\"))","v":"2019-03-23"},null,null,{"$f":"IF(DAY(AbrDom1)=1,IF(AND(YEAR(AbrDom1+15)=AnoDoCalendário,MONTH(AbrDom1+15)=4),AbrDom1+15,\"\"),IF(AND(YEAR(AbrDom1+22)=AnoDoCalendário,MONTH(AbrDom1+22)=4),AbrDom1+22,\"\"))","v":"2019-04-21"},{"$f":"IF(DAY(AbrDom1)=1,IF(AND(YEAR(AbrDom1+16)=AnoDoCalendário,MONTH(AbrDom1+16)=4),AbrDom1+16,\"\"),IF(AND(YEAR(AbrDom1+23)=AnoDoCalendário,MONTH(AbrDom1+23)=4),AbrDom1+23,\"\"))","v":"2019-04-22"},{"$f":"IF(DAY(AbrDom1)=1,IF(AND(YEAR(AbrDom1+17)=AnoDoCalendário,MONTH(AbrDom1+17)=4),AbrDom1+17,\"\"),IF(AND(YEAR(AbrDom1+24)=AnoDoCalendário,MONTH(AbrDom1+24)=4),AbrDom1+24,\"\"))","v":"2019-04-23"},{"$f":"IF(DAY(AbrDom1)=1,IF(AND(YEAR(AbrDom1+18)=AnoDoCalendário,MONTH(AbrDom1+18)=4),AbrDom1+18,\"\"),IF(AND(YEAR(AbrDom1+25)=AnoDoCalendário,MONTH(AbrDom1+25)=4),AbrDom1+25,\"\"))","v":"2019-04-24"},{"$f":"IF(DAY(AbrDom1)=1,IF(AND(YEAR(AbrDom1+19)=AnoDoCalendário,MONTH(AbrDom1+19)=4),AbrDom1+19,\"\"),IF(AND(YEAR(AbrDom1+26)=AnoDoCalendário,MONTH(AbrDom1+26)=4),AbrDom1+26,\"\"))","v":"2019-04-25"},{"$f":"IF(DAY(AbrDom1)=1,IF(AND(YEAR(AbrDom1+20)=AnoDoCalendário,MONTH(AbrDom1+20)=4),AbrDom1+20,\"\"),IF(AND(YEAR(AbrDom1+27)=AnoDoCalendário,MONTH(AbrDom1+27)=4),AbrDom1+27,\"\"))","v":"2019-04-26"},{"$f":"IF(DAY(AbrDom1)=1,IF(AND(YEAR(AbrDom1+21)=AnoDoCalendário,MONTH(AbrDom1+21)=4),AbrDom1+21,\"\"),IF(AND(YEAR(AbrDom1+28)=AnoDoCalendário,MONTH(AbrDom1+28)=4),AbrDom1+28,\"\"))","v":"2019-04-27"}]
[null,null,{"$f":"IF(DAY(JanDom1)=1,IF(AND(YEAR(JanDom1+22)=AnoDoCalendário,MONTH(JanDom1+22)=1),JanDom1+22,\"\"),IF(AND(YEAR(JanDom1+29)=AnoDoCalendário,MONTH(JanDom1+29)=1),JanDom1+29,\"\"))","v":"2019-01-27"},{"$f":"IF(DAY(JanDom1)=1,IF(AND(YEAR(JanDom1+23)=AnoDoCalendário,MONTH(JanDom1+23)=1),JanDom1+23,\"\"),IF(AND(YEAR(JanDom1+30)=AnoDoCalendário,MONTH(JanDom1+30)=1),JanDom1+30,\"\"))","v":"2019-01-28"},{"$f":"IF(DAY(JanDom1)=1,IF(AND(YEAR(JanDom1+24)=AnoDoCalendário,MONTH(JanDom1+24)=1),JanDom1+24,\"\"),IF(AND(YEAR(JanDom1+31)=AnoDoCalendário,MONTH(JanDom1+31)=1),JanDom1+31,\"\"))","v":"2019-01-29"},{"$f":"IF(DAY(JanDom1)=1,IF(AND(YEAR(JanDom1+25)=AnoDoCalendário,MONTH(JanDom1+25)=1),JanDom1+25,\"\"),IF(AND(YEAR(JanDom1+32)=AnoDoCalendário,MONTH(JanDom1+32)=1),JanDom1+32,\"\"))","v":"2019-01-30"},{"$f":"IF(DAY(JanDom1)=1,IF(AND(YEAR(JanDom1+26)=AnoDoCalendário,MONTH(JanDom1+26)=1),JanDom1+26,\"\"),IF(AND(YEAR(JanDom1+33)=AnoDoCalendário,MONTH(JanDom1+33)=1),JanDom1+33,\"\"))","v":"2019-01-31"},{"$f":"IF(DAY(JanDom1)=1,IF(AND(YEAR(JanDom1+27)=AnoDoCalendário,MONTH(JanDom1+27)=1),JanDom1+27,\"\"),IF(AND(YEAR(JanDom1+34)=AnoDoCalendário,MONTH(JanDom1+34)=1),JanDom1+34,\"\"))","v":""},{"$f":"IF(DAY(JanDom1)=1,IF(AND(YEAR(JanDom1+28)=AnoDoCalendário,MONTH(JanDom1+28)=1),JanDom1+28,\"\"),IF(AND(YEAR(JanDom1+35)=AnoDoCalendário,MONTH(JanDom1+35)=1),JanDom1+35,\"\"))","v":""},null,null,{"$f":"IF(DAY(FevDom1)=1,IF(AND(YEAR(FevDom1+22)=AnoDoCalendário,MONTH(FevDom1+22)=2),FevDom1+22,\"\"),IF(AND(YEAR(FevDom1+29)=AnoDoCalendário,MONTH(FevDom1+29)=2),FevDom1+29,\"\"))","v":"2019-02-24"},{"$f":"IF(DAY(FevDom1)=1,IF(AND(YEAR(FevDom1+23)=AnoDoCalendário,MONTH(FevDom1+23)=2),FevDom1+23,\"\"),IF(AND(YEAR(FevDom1+30)=AnoDoCalendário,MONTH(FevDom1+30)=2),FevDom1+30,\"\"))","v":"2019-02-25"},{"$f":"IF(DAY(FevDom1)=1,IF(AND(YEAR(FevDom1+24)=AnoDoCalendário,MONTH(FevDom1+24)=2),FevDom1+24,\"\"),IF(AND(YEAR(FevDom1+31)=AnoDoCalendário,MONTH(FevDom1+31)=2),FevDom1+31,\"\"))","v":"2019-02-26"},{"$f":"IF(DAY(FevDom1)=1,IF(AND(YEAR(FevDom1+25)=AnoDoCalendário,MONTH(FevDom1+25)=2),FevDom1+25,\"\"),IF(AND(YEAR(FevDom1+32)=AnoDoCalendário,MONTH(FevDom1+32)=2),FevDom1+32,\"\"))","v":"2019-02-27"},{"$f":"IF(DAY(FevDom1)=1,IF(AND(YEAR(FevDom1+26)=AnoDoCalendário,MONTH(FevDom1+26)=2),FevDom1+26,\"\"),IF(AND(YEAR(FevDom1+33)=AnoDoCalendário,MONTH(FevDom1+33)=2),FevDom1+33,\"\"))","v":"2019-02-28"},{"$f":"IF(DAY(FevDom1)=1,IF(AND(YEAR(FevDom1+27)=AnoDoCalendário,MONTH(FevDom1+27)=2),FevDom1+27,\"\"),IF(AND(YEAR(FevDom1+34)=AnoDoCalendário,MONTH(FevDom1+34)=2),FevDom1+34,\"\"))","v":""},{"$f":"IF(DAY(FevDom1)=1,IF(AND(YEAR(FevDom1+28)=AnoDoCalendário,MONTH(FevDom1+28)=2),FevDom1+28,\"\"),IF(AND(YEAR(FevDom1+35)=AnoDoCalendário,MONTH(FevDom1+35)=2),FevDom1+35,\"\"))","v":""},null,null,{"$f":"IF(DAY(MarDom1)=1,IF(AND(YEAR(MarDom1+22)=AnoDoCalendário,MONTH(MarDom1+22)=3),MarDom1+22,\"\"),IF(AND(YEAR(MarDom1+29)=AnoDoCalendário,MONTH(MarDom1+29)=3),MarDom1+29,\"\"))","v":"2019-03-24"},{"$f":"IF(DAY(MarDom1)=1,IF(AND(YEAR(MarDom1+23)=AnoDoCalendário,MONTH(MarDom1+23)=3),MarDom1+23,\"\"),IF(AND(YEAR(MarDom1+30)=AnoDoCalendário,MONTH(MarDom1+30)=3),MarDom1+30,\"\"))","v":"2019-03-25"},{"$f":"IF(DAY(MarDom1)=1,IF(AND(YEAR(MarDom1+24)=AnoDoCalendário,MONTH(MarDom1+24)=3),MarDom1+24,\"\"),IF(AND(YEAR(MarDom1+31)=AnoDoCalendário,MONTH(MarDom1+31)=3),MarDom1+31,\"\"))","v":"2019-03-26"},{"$f":"IF(DAY(MarDom1)=1,IF(AND(YEAR(MarDom1+25)=AnoDoCalendário,MONTH(MarDom1+25)=3),MarDom1+25,\"\"),IF(AND(YEAR(MarDom1+32)=AnoDoCalendário,MONTH(MarDom1+32)=3),MarDom1+32,\"\"))","v":"2019-03-27"},{"$f":"IF(DAY(MarDom1)=1,IF(AND(YEAR(MarDom1+26)=AnoDoCalendário,MONTH(MarDom1+26)=3),MarDom1+26,\"\"),IF(AND(YEAR(MarDom1+33)=AnoDoCalendário,MONTH(MarDom1+33)=3),MarDom1+33,\"\"))","v":"2019-03-28"},{"$f":"IF(DAY(MarDom1)=1,IF(AND(YEAR(MarDom1+27)=AnoDoCalendário,MONTH(MarDom1+27)=3),MarDom1+27,\"\"),IF(AND(YEAR(MarDom1+34)=AnoDoCalendário,MONTH(MarDom1+34)=3),MarDom1+34,\"\"))","v":"2019-03-29"},{"$f":"IF(DAY(MarDom1)=1,IF(AND(YEAR(MarDom1+28)=AnoDoCalendário,MONTH(MarDom1+28)=3),MarDom1+28,\"\"),IF(AND(YEAR(MarDom1+35)=AnoDoCalendário,MONTH(MarDom1+35)=3),MarDom1+35,\"\"))","v":"2019-03-30"},null,null,{"$f":"IF(DAY(AbrDom1)=1,IF(AND(YEAR(AbrDom1+22)=AnoDoCalendário,MONTH(AbrDom1+22)=4),AbrDom1+22,\"\"),IF(AND(YEAR(AbrDom1+29)=AnoDoCalendário,MONTH(AbrDom1+29)=4),AbrDom1+29,\"\"))","v":"2019-04-28"},{"$f":"IF(DAY(AbrDom1)=1,IF(AND(YEAR(AbrDom1+23)=AnoDoCalendário,MONTH(AbrDom1+23)=4),AbrDom1+23,\"\"),IF(AND(YEAR(AbrDom1+30)=AnoDoCalendário,MONTH(AbrDom1+30)=4),AbrDom1+30,\"\"))","v":"2019-04-29"},{"$f":"IF(DAY(AbrDom1)=1,IF(AND(YEAR(AbrDom1+24)=AnoDoCalendário,MONTH(AbrDom1+24)=4),AbrDom1+24,\"\"),IF(AND(YEAR(AbrDom1+31)=AnoDoCalendário,MONTH(AbrDom1+31)=4),AbrDom1+31,\"\"))","v":"2019-04-30"},{"$f":"IF(DAY(AbrDom1)=1,IF(AND(YEAR(AbrDom1+25)=AnoDoCalendário,MONTH(AbrDom1+25)=4),AbrDom1+25,\"\"),IF(AND(YEAR(AbrDom1+32)=AnoDoCalendário,MONTH(AbrDom1+32)=4),AbrDom1+32,\"\"))","v":""},{"$f":"IF(DAY(AbrDom1)=1,IF(AND(YEAR(AbrDom1+26)=AnoDoCalendário,MONTH(AbrDom1+26)=4),AbrDom1+26,\"\"),IF(AND(YEAR(AbrDom1+33)=AnoDoCalendário,MONTH(AbrDom1+33)=4),AbrDom1+33,\"\"))","v":""},{"$f":"IF(DAY(AbrDom1)=1,IF(AND(YEAR(AbrDom1+27)=AnoDoCalendário,MONTH(AbrDom1+27)=4),AbrDom1+27,\"\"),IF(AND(YEAR(AbrDom1+34)=AnoDoCalendário,MONTH(AbrDom1+34)=4),AbrDom1+34,\"\"))","v":""},{"$f":"IF(DAY(AbrDom1)=1,IF(AND(YEAR(AbrDom1+28)=AnoDoCalendário,MONTH(AbrDom1+28)=4),AbrDom1+28,\"\"),IF(AND(YEAR(AbrDom1+35)=AnoDoCalendário,MONTH(AbrDom1+35)=4),AbrDom1+35,\"\"))","v":""}]
[null,null,{"$f":"IF(DAY(JanDom1)=1,IF(AND(YEAR(JanDom1+29)=AnoDoCalendário,MONTH(JanDom1+29)=1),JanDom1+29,\"\"),IF(AND(YEAR(JanDom1+36)=AnoDoCalendário,MONTH(JanDom1+36)=1),JanDom1+36,\"\"))","v":""},{"$f":"IF(DAY(JanDom1)=1,IF(AND(YEAR(JanDom1+30)=AnoDoCalendário,MONTH(JanDom1+30)=1),JanDom1+30,\"\"),IF(AND(YEAR(JanDom1+37)=AnoDoCalendário,MONTH(JanDom1+37)=1),JanDom1+37,\"\"))","v":""},{"$f":"IF(DAY(JanDom1)=1,IF(AND(YEAR(JanDom1+31)=AnoDoCalendário,MONTH(JanDom1+31)=1),JanDom1+31,\"\"),IF(AND(YEAR(JanDom1+38)=AnoDoCalendário,MONTH(JanDom1+38)=1),JanDom1+38,\"\"))","v":""},{"$f":"IF(DAY(JanDom1)=1,IF(AND(YEAR(JanDom1+32)=AnoDoCalendário,MONTH(JanDom1+32)=1),JanDom1+32,\"\"),IF(AND(YEAR(JanDom1+39)=AnoDoCalendário,MONTH(JanDom1+39)=1),JanDom1+39,\"\"))","v":""},{"$f":"IF(DAY(JanDom1)=1,IF(AND(YEAR(JanDom1+33)=AnoDoCalendário,MONTH(JanDom1+33)=1),JanDom1+33,\"\"),IF(AND(YEAR(JanDom1+40)=AnoDoCalendário,MONTH(JanDom1+40)=1),JanDom1+40,\"\"))","v":""},{"$f":"IF(DAY(JanDom1)=1,IF(AND(YEAR(JanDom1+34)=AnoDoCalendário,MONTH(JanDom1+34)=1),JanDom1+34,\"\"),IF(AND(YEAR(JanDom1+41)=AnoDoCalendário,MONTH(JanDom1+41)=1),JanDom1+41,\"\"))","v":""},{"$f":"IF(DAY(JanDom1)=1,IF(AND(YEAR(JanDom1+35)=AnoDoCalendário,MONTH(JanDom1+35)=1),JanDom1+35,\"\"),IF(AND(YEAR(JanDom1+42)=AnoDoCalendário,MONTH(JanDom1+42)=1),JanDom1+42,\"\"))","v":""},null,null,{"$f":"IF(DAY(FevDom1)=1,IF(AND(YEAR(FevDom1+29)=AnoDoCalendário,MONTH(FevDom1+29)=2),FevDom1+29,\"\"),IF(AND(YEAR(FevDom1+36)=AnoDoCalendário,MONTH(FevDom1+36)=2),FevDom1+36,\"\"))","v":""},{"$f":"IF(DAY(FevDom1)=1,IF(AND(YEAR(FevDom1+30)=AnoDoCalendário,MONTH(FevDom1+30)=2),FevDom1+30,\"\"),IF(AND(YEAR(FevDom1+37)=AnoDoCalendário,MONTH(FevDom1+37)=2),FevDom1+37,\"\"))","v":""},{"$f":"IF(DAY(FevDom1)=1,IF(AND(YEAR(FevDom1+31)=AnoDoCalendário,MONTH(FevDom1+31)=2),FevDom1+31,\"\"),IF(AND(YEAR(FevDom1+38)=AnoDoCalendário,MONTH(FevDom1+38)=2),FevDom1+38,\"\"))","v":""},{"$f":"IF(DAY(FevDom1)=1,IF(AND(YEAR(FevDom1+32)=AnoDoCalendário,MONTH(FevDom1+32)=2),FevDom1+32,\"\"),IF(AND(YEAR(FevDom1+39)=AnoDoCalendário,MONTH(FevDom1+39)=2),FevDom1+39,\"\"))","v":""},{"$f":"IF(DAY(FevDom1)=1,IF(AND(YEAR(FevDom1+33)=AnoDoCalendário,MONTH(FevDom1+33)=2),FevDom1+33,\"\"),IF(AND(YEAR(FevDom1+40)=AnoDoCalendário,MONTH(FevDom1+40)=2),FevDom1+40,\"\"))","v":""},{"$f":"IF(DAY(FevDom1)=1,IF(AND(YEAR(FevDom1+34)=AnoDoCalendário,MONTH(FevDom1+34)=2),FevDom1+34,\"\"),IF(AND(YEAR(FevDom1+41)=AnoDoCalendário,MONTH(FevDom1+41)=2),FevDom1+41,\"\"))","v":""},{"$f":"IF(DAY(FevDom1)=1,IF(AND(YEAR(FevDom1+35)=AnoDoCalendário,MONTH(FevDom1+35)=2),FevDom1+35,\"\"),IF(AND(YEAR(FevDom1+42)=AnoDoCalendário,MONTH(FevDom1+42)=2),FevDom1+42,\"\"))","v":""},null,null,{"$f":"IF(DAY(MarDom1)=1,IF(AND(YEAR(MarDom1+29)=AnoDoCalendário,MONTH(MarDom1+29)=3),MarDom1+29,\"\"),IF(AND(YEAR(MarDom1+36)=AnoDoCalendário,MONTH(MarDom1+36)=3),MarDom1+36,\"\"))","v":"2019-03-31"},{"$f":"IF(DAY(MarDom1)=1,IF(AND(YEAR(MarDom1+30)=AnoDoCalendário,MONTH(MarDom1+30)=3),MarDom1+30,\"\"),IF(AND(YEAR(MarDom1+37)=AnoDoCalendário,MONTH(MarDom1+37)=3),MarDom1+37,\"\"))","v":""},{"$f":"IF(DAY(MarDom1)=1,IF(AND(YEAR(MarDom1+31)=AnoDoCalendário,MONTH(MarDom1+31)=3),MarDom1+31,\"\"),IF(AND(YEAR(MarDom1+38)=AnoDoCalendário,MONTH(MarDom1+38)=3),MarDom1+38,\"\"))","v":""},{"$f":"IF(DAY(MarDom1)=1,IF(AND(YEAR(MarDom1+32)=AnoDoCalendário,MONTH(MarDom1+32)=3),MarDom1+32,\"\"),IF(AND(YEAR(MarDom1+39)=AnoDoCalendário,MONTH(MarDom1+39)=3),MarDom1+39,\"\"))","v":""},{"$f":"IF(DAY(MarDom1)=1,IF(AND(YEAR(MarDom1+33)=AnoDoCalendário,MONTH(MarDom1+33)=3),MarDom1+33,\"\"),IF(AND(YEAR(MarDom1+40)=AnoDoCalendário,MONTH(MarDom1+40)=3),MarDom1+40,\"\"))","v":""},{"$f":"IF(DAY(MarDom1)=1,IF(AND(YEAR(MarDom1+34)=AnoDoCalendário,MONTH(MarDom1+34)=3),MarDom1+34,\"\"),IF(AND(YEAR(MarDom1+41)=AnoDoCalendário,MONTH(MarDom1+41)=3),MarDom1+41,\"\"))","v":""},{"$f":"IF(DAY(MarDom1)=1,IF(AND(YEAR(MarDom1+35)=AnoDoCalendário,MONTH(MarDom1+35)=3),MarDom1+35,\"\"),IF(AND(YEAR(MarDom1+42)=AnoDoCalendário,MONTH(MarDom1+42)=3),MarDom1+42,\"\"))","v":""},null,null,{"$f":"IF(DAY(AbrDom1)=1,IF(AND(YEAR(AbrDom1+29)=AnoDoCalendário,MONTH(AbrDom1+29)=4),AbrDom1+29,\"\"),IF(AND(YEAR(AbrDom1+36)=AnoDoCalendário,MONTH(AbrDom1+36)=4),AbrDom1+36,\"\"))","v":""},{"$f":"IF(DAY(AbrDom1)=1,IF(AND(YEAR(AbrDom1+30)=AnoDoCalendário,MONTH(AbrDom1+30)=4),AbrDom1+30,\"\"),IF(AND(YEAR(AbrDom1+37)=AnoDoCalendário,MONTH(AbrDom1+37)=4),AbrDom1+37,\"\"))","v":""},{"$f":"IF(DAY(AbrDom1)=1,IF(AND(YEAR(AbrDom1+31)=AnoDoCalendário,MONTH(AbrDom1+31)=4),AbrDom1+31,\"\"),IF(AND(YEAR(AbrDom1+38)=AnoDoCalendário,MONTH(AbrDom1+38)=4),AbrDom1+38,\"\"))","v":""},{"$f":"IF(DAY(AbrDom1)=1,IF(AND(YEAR(AbrDom1+32)=AnoDoCalendário,MONTH(AbrDom1+32)=4),AbrDom1+32,\"\"),IF(AND(YEAR(AbrDom1+39)=AnoDoCalendário,MONTH(AbrDom1+39)=4),AbrDom1+39,\"\"))","v":""},{"$f":"IF(DAY(AbrDom1)=1,IF(AND(YEAR(AbrDom1+33)=AnoDoCalendário,MONTH(AbrDom1+33)=4),AbrDom1+33,\"\"),IF(AND(YEAR(AbrDom1+40)=AnoDoCalendário,MONTH(AbrDom1+40)=4),AbrDom1+40,\"\"))","v":""},{"$f":"IF(DAY(AbrDom1)=1,IF(AND(YEAR(AbrDom1+34)=AnoDoCalendário,MONTH(AbrDom1+34)=4),AbrDom1+34,\"\"),IF(AND(YEAR(AbrDom1+41)=AnoDoCalendário,MONTH(AbrDom1+41)=4),AbrDom1+41,\"\"))","v":""},{"$f":"IF(DAY(AbrDom1)=1,IF(AND(YEAR(AbrDom1+35)=AnoDoCalendário,MONTH(AbrDom1+35)=4),AbrDom1+35,\"\"),IF(AND(YEAR(AbrDom1+42)=AnoDoCalendário,MONTH(AbrDom1+42)=4),AbrDom1+42,\"\"))","v":""}]
["O calendário de Maio está nas células C34 à I40, o calendário de Junho nas células L34 à R40, o calendário de Julho nas células U34 à AA40 e o calendário de Agosto nas células AD34 à AJ40."]
["Os nomes dos Meses estão nesta linha. O rótulo de Maio está na célula C33, o de Junho na L33, o de Julho na U33 e o de Agosto na AD33.",null,{"$f":"DATE(AnoDoCalendário,5,1)","v":"2019-05-01"},{"$nulls":8},{"$f":"DATE(AnoDoCalendário,6,1)","v":"2019-06-01"},{"$nulls":8},{"$f":"DATE(AnoDoCalendário,7,1)","v":"2019-07-01"},{"$nulls":8},{"$f":"DATE(AnoDoCalendário,8,1)","v":"2019-08-01"}]
["Os nomes dos Dias da Semana estão nesta linha. Os nomes dos dias da semana de Maio estão nas células C34 à I34, os de Junho nas células L34 à R34, os de Julho nas células U34 à AA34 e os de Agosto nas células AD34 à AJ34.",null,"Dom","Seg","Ter","Qua","Qui","Sex","Sab",null,null,"Dom","Seg","Ter","Qua","Qui","Sex","Sab",null,null,"Dom","Seg","Ter","Qua","Qui","Sex","Sab",null,null,"Dom","Seg","Ter","Qua","Qui","Sex","Sab"]
["As Datas são atualizadas automaticamente nesta linha. As datas de Maio estão nas células à direita, células C35 à I40, as de Junho nas células L35 à R40, as de Julho nas células U35 à AA35 e as de Agosto nas células AD35 à AJ40. A próxima instrução está na célula A41.",null,{"$f":"IF(DAY(MaiDom1)=1,\"\",IF(AND(YEAR(MaiDom1+1)=AnoDoCalendário,MONTH(MaiDom1+1)=5),MaiDom1+1,\"\"))","v":""},{"$f":"IF(DAY(MaiDom1)=1,\"\",IF(AND(YEAR(MaiDom1+2)=AnoDoCalendário,MONTH(MaiDom1+2)=5),MaiDom1+2,\"\"))","v":""},{"$f":"IF(DAY(MaiDom1)=1,\"\",IF(AND(YEAR(MaiDom1+3)=AnoDoCalendário,MONTH(MaiDom1+3)=5),MaiDom1+3,\"\"))","v":""},{"$f":"IF(DAY(MaiDom1)=1,\"\",IF(AND(YEAR(MaiDom1+4)=AnoDoCalendário,MONTH(MaiDom1+4)=5),MaiDom1+4,\"\"))","v":"2019-05-01"},{"$f":"IF(DAY(MaiDom1)=1,\"\",IF(AND(YEAR(MaiDom1+5)=AnoDoCalendário,MONTH(MaiDom1+5)=5),MaiDom1+5,\"\"))","v":"2019-05-02"},{"$f":"IF(DAY(MaiDom1)=1,\"\",IF(AND(YEAR(MaiDom1+6)=AnoDoCalendário,MONTH(MaiDom1+6)=5),MaiDom1+6,\"\"))","v":"2019-05-03"},{"$f":"IF(DAY(MaiDom1)=1,IF(AND(YEAR(MaiDom1)=AnoDoCalendário,MONTH(MaiDom1)=5),MaiDom1,\"\"),IF(AND(YEAR(MaiDom1+7)=AnoDoCalendário,MONTH(MaiDom1+7)=5),MaiDom1+7,\"\"))","v":"2019-05-04"},null,null,{"$f":"IF(DAY(JunDom1)=1,\"\",IF(AND(YEAR(JunDom1+1)=AnoDoCalendário,MONTH(JunDom1+1)=6),JunDom1+1,\"\"))","v":""},{"$f":"IF(DAY(JunDom1)=1,\"\",IF(AND(YEAR(JunDom1+2)=AnoDoCalendário,MONTH(JunDom1+2)=6),JunDom1+2,\"\"))","v":""},{"$f":"IF(DAY(JunDom1)=1,\"\",IF(AND(YEAR(JunDom1+3)=AnoDoCalendário,MONTH(JunDom1+3)=6),JunDom1+3,\"\"))","v":""},{"$f":"IF(DAY(JunDom1)=1,\"\",IF(AND(YEAR(JunDom1+4)=AnoDoCalendário,MONTH(JunDom1+4)=6),JunDom1+4,\"\"))","v":""},{"$f":"IF(DAY(JunDom1)=1,\"\",IF(AND(YEAR(JunDom1+5)=AnoDoCalendário,MONTH(JunDom1+5)=6),JunDom1+5,\"\"))","v":""},{"$f":"IF(DAY(JunDom1)=1,\"\",IF(AND(YEAR(JunDom1+6)=AnoDoCalendário,MONTH(JunDom1+6)=6),JunDom1+6,\"\"))","v":""},{"$f":"IF(DAY(JunDom1)=1,IF(AND(YEAR(JunDom1)=AnoDoCalendário,MONTH(JunDom1)=6),JunDom1,\"\"),IF(AND(YEAR(JunDom1+7)=AnoDoCalendário,MONTH(JunDom1+7)=6),JunDom1+7,\"\"))","v":"2019-06-01"},null,null,{"$f":"IF(DAY(JulDom1)=1,\"\",IF(AND(YEAR(JulDom1+1)=AnoDoCalendário,MONTH(JulDom1+1)=7),JulDom1+1,\"\"))","v":""},{"$f":"IF(DAY(JulDom1)=1,\"\",IF(AND(YEAR(JulDom1+2)=AnoDoCalendário,MONTH(JulDom1+2)=7),JulDom1+2,\"\"))","v":"2019-07-01"},{"$f":"IF(DAY(JulDom1)=1,\"\",IF(AND(YEAR(JulDom1+3)=AnoDoCalendário,MONTH(JulDom1+3)=7),JulDom1+3,\"\"))","v":"2019-07-02"},{"$f":"IF(DAY(JulDom1)=1,\"\",IF(AND(YEAR(JulDom1+4)=AnoDoCalendário,MONTH(JulDom1+4)=7),JulDom1+4,\"\"))","v":"2019-07-03"},{"$f":"IF(DAY(JulDom1)=1,\"\",IF(AND(YEAR(JulDom1+5)=AnoDoCalendário,MONTH(JulDom1+5)=7),JulDom1+5,\"\"))","v":"2019-07-04"},{"$f":"IF(DAY(JulDom1)=1,\"\",IF(AND(YEAR(JulDom1+6)=AnoDoCalendário,MONTH(JulDom1+6)=7),JulDom1+6,\"\"))","v":"2019-07-05"},{"$f":"IF(DAY(JulDom1)=1,IF(AND(YEAR(JulDom1)=AnoDoCalendário,MONTH(JulDom1)=7),JulDom1,\"\"),IF(AND(YEAR(JulDom1+7)=AnoDoCalendário,MONTH(JulDom1+7)=7),JulDom1+7,\"\"))","v":"2019-07-06"},null,null,{"$f":"IF(DAY(AgoDom1)=1,\"\",IF(AND(YEAR(AgoDom1+1)=AnoDoCalendário,MONTH(AgoDom1+1)=8),AgoDom1+1,\"\"))","v":""},{"$f":"IF(DAY(AgoDom1)=1,\"\",IF(AND(YEAR(AgoDom1+2)=AnoDoCalendário,MONTH(AgoDom1+2)=8),AgoDom1+2,\"\"))","v":""},{"$f":"IF(DAY(AgoDom1)=1,\"\",IF(AND(YEAR(AgoDom1+3)=AnoDoCalendário,MONTH(AgoDom1+3)=8),AgoDom1+3,\"\"))","v":""},{"$f":"IF(DAY(AgoDom1)=1,\"\",IF(AND(YEAR(AgoDom1+4)=AnoDoCalendário,MONTH(AgoDom1+4)=8),AgoDom1+4,\"\"))","v":""},{"$f":"IF(DAY(AgoDom1)=1,\"\",IF(AND(YEAR(AgoDom1+5)=AnoDoCalendário,MONTH(AgoDom1+5)=8),AgoDom1+5,\"\"))","v":"2019-08-01"},{"$f":"IF(DAY(AgoDom1)=1,\"\",IF(AND(YEAR(AgoDom1+6)=AnoDoCalendário,MONTH(AgoDom1+6)=8),AgoDom1+6,\"\"))","v":"2019-08-02"},{"$f":"IF(DAY(AgoDom1)=1,IF(AND(YEAR(AgoDom1)=AnoDoCalendário,MONTH(AgoDom1)=8),AgoDom1,\"\"),IF(AND(YEAR(AgoDom1+7)=AnoDoCalendário,MONTH(AgoDom1+7)=8),AgoDom1+7,\"\"))","v":"2019-08-03"}]
[null,null,{"$f":"IF(DAY(MaiDom1)=1,IF(AND(YEAR(MaiDom1+1)=AnoDoCalendário,MONTH(MaiDom1+1)=5),MaiDom1+1,\"\"),IF(AND(YEAR(MaiDom1+8)=AnoDoCalendário,MONTH(MaiDom1+8)=5),MaiDom1+8,\"\"))","v":"2019-05-05"},{"$f":"IF(DAY(MaiDom1)=1,IF(AND(YEAR(MaiDom1+2)=AnoDoCalendário,MONTH(MaiDom1+2)=5),MaiDom1+2,\"\"),IF(AND(YEAR(MaiDom1+9)=AnoDoCalendário,MONTH(MaiDom1+9)=5),MaiDom1+9,\"\"))","v":"2019-05-06"},{"$f":"IF(DAY(MaiDom1)=1,IF(AND(YEAR(MaiDom1+3)=AnoDoCalendário,MONTH(MaiDom1+3)=5),MaiDom1+3,\"\"),IF(AND(YEAR(MaiDom1+10)=AnoDoCalendário,MONTH(MaiDom1+10)=5),MaiDom1+10,\"\"))","v":"2019-05-07"},{"$f":"IF(DAY(MaiDom1)=1,IF(AND(YEAR(MaiDom1+4)=AnoDoCalendário,MONTH(MaiDom1+4)=5),MaiDom1+4,\"\"),IF(AND(YEAR(MaiDom1+11)=AnoDoCalendário,MONTH(MaiDom1+11)=5),MaiDom1+11,\"\"))","v":"2019-05-08"},{"$f":"IF(DAY(MaiDom1)=1,IF(AND(YEAR(MaiDom1+5)=AnoDoCalendário,MONTH(MaiDom1+5)=5),MaiDom1+5,\"\"),IF(AND(YEAR(MaiDom1+12)=AnoDoCalendário,MONTH(MaiDom1+12)=5),MaiDom1+12,\"\"))","v":"2019-05-09"},{"$f":"IF(DAY(MaiDom1)=1,IF(AND(YEAR(MaiDom1+6)=AnoDoCalendário,MONTH(MaiDom1+6)=5),MaiDom1+6,\"\"),IF(AND(YEAR(MaiDom1+13)=AnoDoCalendário,MONTH(MaiDom1+13)=5),MaiDom1+13,\"\"))","v":"2019-05-10"},{"$f":"IF(DAY(MaiDom1)=1,IF(AND(YEAR(MaiDom1+7)=AnoDoCalendário,MONTH(MaiDom1+7)=5),MaiDom1+7,\"\"),IF(AND(YEAR(MaiDom1+14)=AnoDoCalendário,MONTH(MaiDom1+14)=5),MaiDom1+14,\"\"))","v":"2019-05-11"},null,null,{"$f":"IF(DAY(JunDom1)=1,IF(AND(YEAR(JunDom1+1)=AnoDoCalendário,MONTH(JunDom1+1)=6),JunDom1+1,\"\"),IF(AND(YEAR(JunDom1+8)=AnoDoCalendário,MONTH(JunDom1+8)=6),JunDom1+8,\"\"))","v":"2019-06-02"},{"$f":"IF(DAY(JunDom1)=1,IF(AND(YEAR(JunDom1+2)=AnoDoCalendário,MONTH(JunDom1+2)=6),JunDom1+2,\"\"),IF(AND(YEAR(JunDom1+9)=AnoDoCalendário,MONTH(JunDom1+9)=6),JunDom1+9,\"\"))","v":"2019-06-03"},{"$f":"IF(DAY(JunDom1)=1,IF(AND(YEAR(JunDom1+3)=AnoDoCalendário,MONTH(JunDom1+3)=6),JunDom1+3,\"\"),IF(AND(YEAR(JunDom1+10)=AnoDoCalendário,MONTH(JunDom1+10)=6),JunDom1+10,\"\"))","v":"2019-06-04"},{"$f":"IF(DAY(JunDom1)=1,IF(AND(YEAR(JunDom1+4)=AnoDoCalendário,MONTH(JunDom1+4)=6),JunDom1+4,\"\"),IF(AND(YEAR(JunDom1+11)=AnoDoCalendário,MONTH(JunDom1+11)=6),JunDom1+11,\"\"))","v":"2019-06-05"},{"$f":"IF(DAY(JunDom1)=1,IF(AND(YEAR(JunDom1+5)=AnoDoCalendário,MONTH(JunDom1+5)=6),JunDom1+5,\"\"),IF(AND(YEAR(JunDom1+12)=AnoDoCalendário,MONTH(JunDom1+12)=6),JunDom1+12,\"\"))","v":"2019-06-06"},{"$f":"IF(DAY(JunDom1)=1,IF(AND(YEAR(JunDom1+6)=AnoDoCalendário,MONTH(JunDom1+6)=6),JunDom1+6,\"\"),IF(AND(YEAR(JunDom1+13)=AnoDoCalendário,MONTH(JunDom1+13)=6),JunDom1+13,\"\"))","v":"2019-06-07"},{"$f":"IF(DAY(JunDom1)=1,IF(AND(YEAR(JunDom1+7)=AnoDoCalendário,MONTH(JunDom1+7)=6),JunDom1+7,\"\"),IF(AND(YEAR(JunDom1+14)=AnoDoCalendário,MONTH(JunDom1+14)=6),JunDom1+14,\"\"))","v":"2019-06-08"},null,null,{"$f":"IF(DAY(JulDom1)=1,IF(AND(YEAR(JulDom1+1)=AnoDoCalendário,MONTH(JulDom1+1)=7),JulDom1+1,\"\"),IF(AND(YEAR(JulDom1+8)=AnoDoCalendário,MONTH(JulDom1+8)=7),JulDom1+8,\"\"))","v":"2019-07-07"},{"$f":"IF(DAY(JulDom1)=1,IF(AND(YEAR(JulDom1+2)=AnoDoCalendário,MONTH(JulDom1+2)=7),JulDom1+2,\"\"),IF(AND(YEAR(JulDom1+9)=AnoDoCalendário,MONTH(JulDom1+9)=7),JulDom1+9,\"\"))","v":"2019-07-08"},{"$f":"IF(DAY(JulDom1)=1,IF(AND(YEAR(JulDom1+3)=AnoDoCalendário,MONTH(JulDom1+3)=7),JulDom1+3,\"\"),IF(AND(YEAR(JulDom1+10)=AnoDoCalendário,MONTH(JulDom1+10)=7),JulDom1+10,\"\"))","v":"2019-07-09"},{"$f":"IF(DAY(JulDom1)=1,IF(AND(YEAR(JulDom1+4)=AnoDoCalendário,MONTH(JulDom1+4)=7),JulDom1+4,\"\"),IF(AND(YEAR(JulDom1+11)=AnoDoCalendário,MONTH(JulDom1+11)=7),JulDom1+11,\"\"))","v":"2019-07-10"},{"$f":"IF(DAY(JulDom1)=1,IF(AND(YEAR(JulDom1+5)=AnoDoCalendário,MONTH(JulDom1+5)=7),JulDom1+5,\"\"),IF(AND(YEAR(JulDom1+12)=AnoDoCalendário,MONTH(JulDom1+12)=7),JulDom1+12,\"\"))","v":"2019-07-11"},{"$f":"IF(DAY(JulDom1)=1,IF(AND(YEAR(JulDom1+6)=AnoDoCalendário,MONTH(JulDom1+6)=7),JulDom1+6,\"\"),IF(AND(YEAR(JulDom1+13)=AnoDoCalendário,MONTH(JulDom1+13)=7),JulDom1+13,\"\"))","v":"2019-07-12"},{"$f":"IF(DAY(JulDom1)=1,IF(AND(YEAR(JulDom1+7)=AnoDoCalendário,MONTH(JulDom1+7)=7),JulDom1+7,\"\"),IF(AND(YEAR(JulDom1+14)=AnoDoCalendário,MONTH(JulDom1+14)=7),JulDom1+14,\"\"))","v":"2019-07-13"},null,null,{"$f":"IF(DAY(AgoDom1)=1,IF(AND(YEAR(AgoDom1+1)=AnoDoCalendário,MONTH(AgoDom1+1)=8),AgoDom1+1,\"\"),IF(AND(YEAR(AgoDom1+8)=AnoDoCalendário,MONTH(AgoDom1+8)=8),AgoDom1+8,\"\"))","v":"2019-08-04"},{"$f":"IF(DAY(AgoDom1)=1,IF(AND(YEAR(AgoDom1+2)=AnoDoCalendário,MONTH(AgoDom1+2)=8),AgoDom1+2,\"\"),IF(AND(YEAR(AgoDom1+9)=AnoDoCalendário,MONTH(AgoDom1+9)=8),AgoDom1+9,\"\"))","v":"2019-08-05"},{"$f":"IF(DAY(AgoDom1)=1,IF(AND(YEAR(AgoDom1+3)=AnoDoCalendário,MONTH(AgoDom1+3)=8),AgoDom1+3,\"\"),IF(AND(YEAR(AgoDom1+10)=AnoDoCalendário,MONTH(AgoDom1+10)=8),AgoDom1+10,\"\"))","v":"2019-08-06"},{"$f":"IF(DAY(AgoDom1)=1,IF(AND(YEAR(AgoDom1+4)=AnoDoCalendário,MONTH(AgoDom1+4)=8),AgoDom1+4,\"\"),IF(AND(YEAR(AgoDom1+11)=AnoDoCalendário,MONTH(AgoDom1+11)=8),AgoDom1+11,\"\"))","v":"2019-08-07"},{"$f":"IF(DAY(AgoDom1)=1,IF(AND(YEAR(AgoDom1+5)=AnoDoCalendário,MONTH(AgoDom1+5)=8),AgoDom1+5,\"\"),IF(AND(YEAR(AgoDom1+12)=AnoDoCalendário,MONTH(AgoDom1+12)=8),AgoDom1+12,\"\"))","v":"2019-08-08"},{"$f":"IF(DAY(AgoDom1)=1,IF(AND(YEAR(AgoDom1+6)=AnoDoCalendário,MONTH(AgoDom1+6)=8),AgoDom1+6,\"\"),IF(AND(YEAR(AgoDom1+13)=AnoDoCalendário,MONTH(AgoDom1+13)=8),AgoDom1+13,\"\"))","v":"2019-08-09"},{"$f":"IF(DAY(AgoDom1)=1,IF(AND(YEAR(AgoDom1+7)=AnoDoCalendário,MONTH(AgoDom1+7)=8),AgoDom1+7,\"\"),IF(AND(YEAR(AgoDom1+14)=AnoDoCalendário,MONTH(AgoDom1+14)=8),AgoDom1+14,\"\"))","v":"2019-08-10"}]
[null,null,{"$f":"IF(DAY(MaiDom1)=1,IF(AND(YEAR(MaiDom1+8)=AnoDoCalendário,MONTH(MaiDom1+8)=5),MaiDom1+8,\"\"),IF(AND(YEAR(MaiDom1+15)=AnoDoCalendário,MONTH(MaiDom1+15)=5),MaiDom1+15,\"\"))","v":"2019-05-12"},{"$f":"IF(DAY(MaiDom1)=1,IF(AND(YEAR(MaiDom1+9)=AnoDoCalendário,MONTH(MaiDom1+9)=5),MaiDom1+9,\"\"),IF(AND(YEAR(MaiDom1+16)=AnoDoCalendário,MONTH(MaiDom1+16)=5),MaiDom1+16,\"\"))","v":"2019-05-13"},{"$f":"IF(DAY(MaiDom1)=1,IF(AND(YEAR(MaiDom1+10)=AnoDoCalendário,MONTH(MaiDom1+10)=5),MaiDom1+10,\"\"),IF(AND(YEAR(MaiDom1+17)=AnoDoCalendário,MONTH(MaiDom1+17)=5),MaiDom1+17,\"\"))","v":"2019-05-14"},{"$f":"IF(DAY(MaiDom1)=1,IF(AND(YEAR(MaiDom1+11)=AnoDoCalendário,MONTH(MaiDom1+11)=5),MaiDom1+11,\"\"),IF(AND(YEAR(MaiDom1+18)=AnoDoCalendário,MONTH(MaiDom1+18)=5),MaiDom1+18,\"\"))","v":"2019-05-15"},{"$f":"IF(DAY(MaiDom1)=1,IF(AND(YEAR(MaiDom1+12)=AnoDoCalendário,MONTH(MaiDom1+12)=5),MaiDom1+12,\"\"),IF(AND(YEAR(MaiDom1+19)=AnoDoCalendário,MONTH(MaiDom1+19)=5),MaiDom1+19,\"\"))","v":"2019-05-16"},{"$f":"IF(DAY(MaiDom1)=1,IF(AND(YEAR(MaiDom1+13)=AnoDoCalendário,MONTH(MaiDom1+13)=5),MaiDom1+13,\"\"),IF(AND(YEAR(MaiDom1+20)=AnoDoCalendário,MONTH(MaiDom1+20)=5),MaiDom1+20,\"\"))","v":"2019-05-17"},{"$f":"IF(DAY(MaiDom1)=1,IF(AND(YEAR(MaiDom1+14)=AnoDoCalendário,MONTH(MaiDom1+14)=5),MaiDom1+14,\"\"),IF(AND(YEAR(MaiDom1+21)=AnoDoCalendário,MONTH(MaiDom1+21)=5),MaiDom1+21,\"\"))","v":"2019-05-18"},null,null,{"$f":"IF(DAY(JunDom1)=1,IF(AND(YEAR(JunDom1+8)=AnoDoCalendário,MONTH(JunDom1+8)=6),JunDom1+8,\"\"),IF(AND(YEAR(JunDom1+15)=AnoDoCalendário,MONTH(JunDom1+15)=6),JunDom1+15,\"\"))","v":"2019-06-09"},{"$f":"IF(DAY(JunDom1)=1,IF(AND(YEAR(JunDom1+9)=AnoDoCalendário,MONTH(JunDom1+9)=6),JunDom1+9,\"\"),IF(AND(YEAR(JunDom1+16)=AnoDoCalendário,MONTH(JunDom1+16)=6),JunDom1+16,\"\"))","v":"2019-06-10"},{"$f":"IF(DAY(JunDom1)=1,IF(AND(YEAR(JunDom1+10)=AnoDoCalendário,MONTH(JunDom1+10)=6),JunDom1+10,\"\"),IF(AND(YEAR(JunDom1+17)=AnoDoCalendário,MONTH(JunDom1+17)=6),JunDom1+17,\"\"))","v":"2019-06-11"},{"$f":"IF(DAY(JunDom1)=1,IF(AND(YEAR(JunDom1+11)=AnoDoCalendário,MONTH(JunDom1+11)=6),JunDom1+11,\"\"),IF(AND(YEAR(JunDom1+18)=AnoDoCalendário,MONTH(JunDom1+18)=6),JunDom1+18,\"\"))","v":"2019-06-12"},{"$f":"IF(DAY(JunDom1)=1,IF(AND(YEAR(JunDom1+12)=AnoDoCalendário,MONTH(JunDom1+12)=6),JunDom1+12,\"\"),IF(AND(YEAR(JunDom1+19)=AnoDoCalendário,MONTH(JunDom1+19)=6),JunDom1+19,\"\"))","v":"2019-06-13"},{"$f":"IF(DAY(JunDom1)=1,IF(AND(YEAR(JunDom1+13)=AnoDoCalendário,MONTH(JunDom1+13)=6),JunDom1+13,\"\"),IF(AND(YEAR(JunDom1+20)=AnoDoCalendário,MONTH(JunDom1+20)=6),JunDom1+20,\"\"))","v":"2019-06-14"},{"$f":"IF(DAY(JunDom1)=1,IF(AND(YEAR(JunDom1+14)=AnoDoCalendário,MONTH(JunDom1+14)=6),JunDom1+14,\"\"),IF(AND(YEAR(JunDom1+21)=AnoDoCalendário,MONTH(JunDom1+21)=6),JunDom1+21,\"\"))","v":"2019-06-15"},null,null,{"$f":"IF(DAY(JulDom1)=1,IF(AND(YEAR(JulDom1+8)=AnoDoCalendário,MONTH(JulDom1+8)=7),JulDom1+8,\"\"),IF(AND(YEAR(JulDom1+15)=AnoDoCalendário,MONTH(JulDom1+15)=7),JulDom1+15,\"\"))","v":"2019-07-14"},{"$f":"IF(DAY(JulDom1)=1,IF(AND(YEAR(JulDom1+9)=AnoDoCalendário,MONTH(JulDom1+9)=7),JulDom1+9,\"\"),IF(AND(YEAR(JulDom1+16)=AnoDoCalendário,MONTH(JulDom1+16)=7),JulDom1+16,\"\"))","v":"2019-07-15"},{"$f":"IF(DAY(JulDom1)=1,IF(AND(YEAR(JulDom1+10)=AnoDoCalendário,MONTH(JulDom1+10)=7),JulDom1+10,\"\"),IF(AND(YEAR(JulDom1+17)=AnoDoCalendário,MONTH(JulDom1+17)=7),JulDom1+17,\"\"))","v":"2019-07-16"},{"$f":"IF(DAY(JulDom1)=1,IF(AND(YEAR(JulDom1+11)=AnoDoCalendário,MONTH(JulDom1+11)=7),JulDom1+11,\"\"),IF(AND(YEAR(JulDom1+18)=AnoDoCalendário,MONTH(JulDom1+18)=7),JulDom1+18,\"\"))","v":"2019-07-17"},{"$f":"IF(DAY(JulDom1)=1,IF(AND(YEAR(JulDom1+12)=AnoDoCalendário,MONTH(JulDom1+12)=7),JulDom1+12,\"\"),IF(AND(YEAR(JulDom1+19)=AnoDoCalendário,MONTH(JulDom1+19)=7),JulDom1+19,\"\"))","v":"2019-07-18"},{"$f":"IF(DAY(JulDom1)=1,IF(AND(YEAR(JulDom1+13)=AnoDoCalendário,MONTH(JulDom1+13)=7),JulDom1+13,\"\"),IF(AND(YEAR(JulDom1+20)=AnoDoCalendário,MONTH(JulDom1+20)=7),JulDom1+20,\"\"))","v":"2019-07-19"},{"$f":"IF(DAY(JulDom1)=1,IF(AND(YEAR(JulDom1+14)=AnoDoCalendário,MONTH(JulDom1+14)=7),JulDom1+14,\"\"),IF(AND(YEAR(JulDom1+21)=AnoDoCalendário,MONTH(JulDom1+21)=7),JulDom1+21,\"\"))","v":"2019-07-20"},null,null,{"$f":"IF(DAY(AgoDom1)=1,IF(AND(YEAR(AgoDom1+8)=AnoDoCalendário,MONTH(AgoDom1+8)=8),AgoDom1+8,\"\"),IF(AND(YEAR(AgoDom1+15)=AnoDoCalendário,MONTH(AgoDom1+15)=8),AgoDom1+15,\"\"))","v":"2019-08-11"},{"$f":"IF(DAY(AgoDom1)=1,IF(AND(YEAR(AgoDom1+9)=AnoDoCalendário,MONTH(AgoDom1+9)=8),AgoDom1+9,\"\"),IF(AND(YEAR(AgoDom1+16)=AnoDoCalendário,MONTH(AgoDom1+16)=8),AgoDom1+16,\"\"))","v":"2019-08-12"},{"$f":"IF(DAY(AgoDom1)=1,IF(AND(YEAR(AgoDom1+10)=AnoDoCalendário,MONTH(AgoDom1+10)=8),AgoDom1+10,\"\"),IF(AND(YEAR(AgoDom1+17)=AnoDoCalendário,MONTH(AgoDom1+17)=8),AgoDom1+17,\"\"))","v":"2019-08-13"},{"$f":"IF(DAY(AgoDom1)=1,IF(AND(YEAR(AgoDom1+11)=AnoDoCalendário,MONTH(AgoDom1+11)=8),AgoDom1+11,\"\"),IF(AND(YEAR(AgoDom1+18)=AnoDoCalendário,MONTH(AgoDom1+18)=8),AgoDom1+18,\"\"))","v":"2019-08-14"},{"$f":"IF(DAY(AgoDom1)=1,IF(AND(YEAR(AgoDom1+12)=AnoDoCalendário,MONTH(AgoDom1+12)=8),AgoDom1+12,\"\"),IF(AND(YEAR(AgoDom1+19)=AnoDoCalendário,MONTH(AgoDom1+19)=8),AgoDom1+19,\"\"))","v":"2019-08-15"},{"$f":"IF(DAY(AgoDom1)=1,IF(AND(YEAR(AgoDom1+13)=AnoDoCalendário,MONTH(AgoDom1+13)=8),AgoDom1+13,\"\"),IF(AND(YEAR(AgoDom1+20)=AnoDoCalendário,MONTH(AgoDom1+20)=8),AgoDom1+20,\"\"))","v":"2019-08-16"},{"$f":"IF(DAY(AgoDom1)=1,IF(AND(YEAR(AgoDom1+14)=AnoDoCalendário,MONTH(AgoDom1+14)=8),AgoDom1+14,\"\"),IF(AND(YEAR(AgoDom1+21)=AnoDoCalendário,MONTH(AgoDom1+21)=8),AgoDom1+21,\"\"))","v":"2019-08-17"}]
[null,null,{"$f":"IF(DAY(MaiDom1)=1,IF(AND(YEAR(MaiDom1+15)=AnoDoCalendário,MONTH(MaiDom1+15)=5),MaiDom1+15,\"\"),IF(AND(YEAR(MaiDom1+22)=AnoDoCalendário,MONTH(MaiDom1+22)=5),MaiDom1+22,\"\"))","v":"2019-05-19"},{"$f":"IF(DAY(MaiDom1)=1,IF(AND(YEAR(MaiDom1+16)=AnoDoCalendário,MONTH(MaiDom1+16)=5),MaiDom1+16,\"\"),IF(AND(YEAR(MaiDom1+23)=AnoDoCalendário,MONTH(MaiDom1+23)=5),MaiDom1+23,\"\"))","v":"2019-05-20"},{"$f":"IF(DAY(MaiDom1)=1,IF(AND(YEAR(MaiDom1+17)=AnoDoCalendário,MONTH(MaiDom1+17)=5),MaiDom1+17,\"\"),IF(AND(YEAR(MaiDom1+24)=AnoDoCalendário,MONTH(MaiDom1+24)=5),MaiDom1+24,\"\"))","v":"2019-05-21"},{"$f":"IF(DAY(MaiDom1)=1,IF(AND(YEAR(MaiDom1+18)=AnoDoCalendário,MONTH(MaiDom1+18)=5),MaiDom1+18,\"\"),IF(AND(YEAR(MaiDom1+25)=AnoDoCalendário,MONTH(MaiDom1+25)=5),MaiDom1+25,\"\"))","v":"2019-05-22"},{"$f":"IF(DAY(MaiDom1)=1,IF(AND(YEAR(MaiDom1+19)=AnoDoCalendário,MONTH(MaiDom1+19)=5),MaiDom1+19,\"\"),IF(AND(YEAR(MaiDom1+26)=AnoDoCalendário,MONTH(MaiDom1+26)=5),MaiDom1+26,\"\"))","v":"2019-05-23"},{"$f":"IF(DAY(MaiDom1)=1,IF(AND(YEAR(MaiDom1+20)=AnoDoCalendário,MONTH(MaiDom1+20)=5),MaiDom1+20,\"\"),IF(AND(YEAR(MaiDom1+27)=AnoDoCalendário,MONTH(MaiDom1+27)=5),MaiDom1+27,\"\"))","v":"2019-05-24"},{"$f":"IF(DAY(MaiDom1)=1,IF(AND(YEAR(MaiDom1+21)=AnoDoCalendário,MONTH(MaiDom1+21)=5),MaiDom1+21,\"\"),IF(AND(YEAR(MaiDom1+28)=AnoDoCalendário,MONTH(MaiDom1+28)=5),MaiDom1+28,\"\"))","v":"2019-05-25"},null,null,{"$f":"IF(DAY(JunDom1)=1,IF(AND(YEAR(JunDom1+15)=AnoDoCalendário,MONTH(JunDom1+15)=6),JunDom1+15,\"\"),IF(AND(YEAR(JunDom1+22)=AnoDoCalendário,MONTH(JunDom1+22)=6),JunDom1+22,\"\"))","v":"2019-06-16"},{"$f":"IF(DAY(JunDom1)=1,IF(AND(YEAR(JunDom1+16)=AnoDoCalendário,MONTH(JunDom1+16)=6),JunDom1+16,\"\"),IF(AND(YEAR(JunDom1+23)=AnoDoCalendário,MONTH(JunDom1+23)=6),JunDom1+23,\"\"))","v":"2019-06-17"},{"$f":"IF(DAY(JunDom1)=1,IF(AND(YEAR(JunDom1+17)=AnoDoCalendário,MONTH(JunDom1+17)=6),JunDom1+17,\"\"),IF(AND(YEAR(JunDom1+24)=AnoDoCalendário,MONTH(JunDom1+24)=6),JunDom1+24,\"\"))","v":"2019-06-18"},{"$f":"IF(DAY(JunDom1)=1,IF(AND(YEAR(JunDom1+18)=AnoDoCalendário,MONTH(JunDom1+18)=6),JunDom1+18,\"\"),IF(AND(YEAR(JunDom1+25)=AnoDoCalendário,MONTH(JunDom1+25)=6),JunDom1+25,\"\"))","v":"2019-06-19"},{"$f":"IF(DAY(JunDom1)=1,IF(AND(YEAR(JunDom1+19)=AnoDoCalendário,MONTH(JunDom1+19)=6),JunDom1+19,\"\"),IF(AND(YEAR(JunDom1+26)=AnoDoCalendário,MONTH(JunDom1+26)=6),JunDom1+26,\"\"))","v":"2019-06-20"},{"$f":"IF(DAY(JunDom1)=1,IF(AND(YEAR(JunDom1+20)=AnoDoCalendário,MONTH(JunDom1+20)=6),JunDom1+20,\"\"),IF(AND(YEAR(JunDom1+27)=AnoDoCalendário,MONTH(JunDom1+27)=6),JunDom1+27,\"\"))","v":"2019-06-21"},{"$f":"IF(DAY(JunDom1)=1,IF(AND(YEAR(JunDom1+21)=AnoDoCalendário,MONTH(JunDom1+21)=6),JunDom1+21,\"\"),IF(AND(YEAR(JunDom1+28)=AnoDoCalendário,MONTH(JunDom1+28)=6),JunDom1+28,\"\"))","v":"2019-06-22"},null,null,{"$f":"IF(DAY(JulDom1)=1,IF(AND(YEAR(JulDom1+15)=AnoDoCalendário,MONTH(JulDom1+15)=7),JulDom1+15,\"\"),IF(AND(YEAR(JulDom1+22)=AnoDoCalendário,MONTH(JulDom1+22)=7),JulDom1+22,\"\"))","v":"2019-07-21"},{"$f":"IF(DAY(JulDom1)=1,IF(AND(YEAR(JulDom1+16)=AnoDoCalendário,MONTH(JulDom1+16)=7),JulDom1+16,\"\"),IF(AND(YEAR(JulDom1+23)=AnoDoCalendário,MONTH(JulDom1+23)=7),JulDom1+23,\"\"))","v":"2019-07-22"},{"$f":"IF(DAY(JulDom1)=1,IF(AND(YEAR(JulDom1+17)=AnoDoCalendário,MONTH(JulDom1+17)=7),JulDom1+17,\"\"),IF(AND(YEAR(JulDom1+24)=AnoDoCalendário,MONTH(JulDom1+24)=7),JulDom1+24,\"\"))","v":"2019-07-23"},{"$f":"IF(DAY(JulDom1)=1,IF(AND(YEAR(JulDom1+18)=AnoDoCalendário,MONTH(JulDom1+18)=7),JulDom1+18,\"\"),IF(AND(YEAR(JulDom1+25)=AnoDoCalendário,MONTH(JulDom1+25)=7),JulDom1+25,\"\"))","v":"2019-07-24"},{"$f":"IF(DAY(JulDom1)=1,IF(AND(YEAR(JulDom1+19)=AnoDoCalendário,MONTH(JulDom1+19)=7),JulDom1+19,\"\"),IF(AND(YEAR(JulDom1+26)=AnoDoCalendário,MONTH(JulDom1+26)=7),JulDom1+26,\"\"))","v":"2019-07-25"},{"$f":"IF(DAY(JulDom1)=1,IF(AND(YEAR(JulDom1+20)=AnoDoCalendário,MONTH(JulDom1+20)=7),JulDom1+20,\"\"),IF(AND(YEAR(JulDom1+27)=AnoDoCalendário,MONTH(JulDom1+27)=7),JulDom1+27,\"\"))","v":"2019-07-26"},{"$f":"IF(DAY(JulDom1)=1,IF(AND(YEAR(JulDom1+21)=AnoDoCalendário,MONTH(JulDom1+21)=7),JulDom1+21,\"\"),IF(AND(YEAR(JulDom1+28)=AnoDoCalendário,MONTH(JulDom1+28)=7),JulDom1+28,\"\"))","v":"2019-07-27"},null,null,{"$f":"IF(DAY(AgoDom1)=1,IF(AND(YEAR(AgoDom1+15)=AnoDoCalendário,MONTH(AgoDom1+15)=8),AgoDom1+15,\"\"),IF(AND(YEAR(AgoDom1+22)=AnoDoCalendário,MONTH(AgoDom1+22)=8),AgoDom1+22,\"\"))","v":"2019-08-18"},{"$f":"IF(DAY(AgoDom1)=1,IF(AND(YEAR(AgoDom1+16)=AnoDoCalendário,MONTH(AgoDom1+16)=8),AgoDom1+16,\"\"),IF(AND(YEAR(AgoDom1+23)=AnoDoCalendário,MONTH(AgoDom1+23)=8),AgoDom1+23,\"\"))","v":"2019-08-19"},{"$f":"IF(DAY(AgoDom1)=1,IF(AND(YEAR(AgoDom1+17)=AnoDoCalendário,MONTH(AgoDom1+17)=8),AgoDom1+17,\"\"),IF(AND(YEAR(AgoDom1+24)=AnoDoCalendário,MONTH(AgoDom1+24)=8),AgoDom1+24,\"\"))","v":"2019-08-20"},{"$f":"IF(DAY(AgoDom1)=1,IF(AND(YEAR(AgoDom1+18)=AnoDoCalendário,MONTH(AgoDom1+18)=8),AgoDom1+18,\"\"),IF(AND(YEAR(AgoDom1+25)=AnoDoCalendário,MONTH(AgoDom1+25)=8),AgoDom1+25,\"\"))","v":"2019-08-21"},{"$f":"IF(DAY(AgoDom1)=1,IF(AND(YEAR(AgoDom1+19)=AnoDoCalendário,MONTH(AgoDom1+19)=8),AgoDom1+19,\"\"),IF(AND(YEAR(AgoDom1+26)=AnoDoCalendário,MONTH(AgoDom1+26)=8),AgoDom1+26,\"\"))","v":"2019-08-22"},{"$f":"IF(DAY(AgoDom1)=1,IF(AND(YEAR(AgoDom1+20)=AnoDoCalendário,MONTH(AgoDom1+20)=8),AgoDom1+20,\"\"),IF(AND(YEAR(AgoDom1+27)=AnoDoCalendário,MONTH(AgoDom1+27)=8),AgoDom1+27,\"\"))","v":"2019-08-23"},{"$f":"IF(DAY(AgoDom1)=1,IF(AND(YEAR(AgoDom1+21)=AnoDoCalendário,MONTH(AgoDom1+21)=8),AgoDom1+21,\"\"),IF(AND(YEAR(AgoDom1+28)=AnoDoCalendário,MONTH(AgoDom1+28)=8),AgoDom1+28,\"\"))","v":"2019-08-24"}]
[null,null,{"$f":"IF(DAY(MaiDom1)=1,IF(AND(YEAR(MaiDom1+22)=AnoDoCalendário,MONTH(MaiDom1+22)=5),MaiDom1+22,\"\"),IF(AND(YEAR(MaiDom1+29)=AnoDoCalendário,MONTH(MaiDom1+29)=5),MaiDom1+29,\"\"))","v":"2019-05-26"},{"$f":"IF(DAY(MaiDom1)=1,IF(AND(YEAR(MaiDom1+23)=AnoDoCalendário,MONTH(MaiDom1+23)=5),MaiDom1+23,\"\"),IF(AND(YEAR(MaiDom1+30)=AnoDoCalendário,MONTH(MaiDom1+30)=5),MaiDom1+30,\"\"))","v":"2019-05-27"},{"$f":"IF(DAY(MaiDom1)=1,IF(AND(YEAR(MaiDom1+24)=AnoDoCalendário,MONTH(MaiDom1+24)=5),MaiDom1+24,\"\"),IF(AND(YEAR(MaiDom1+31)=AnoDoCalendário,MONTH(MaiDom1+31)=5),MaiDom1+31,\"\"))","v":"2019-05-28"},{"$f":"IF(DAY(MaiDom1)=1,IF(AND(YEAR(MaiDom1+25)=AnoDoCalendário,MONTH(MaiDom1+25)=5),MaiDom1+25,\"\"),IF(AND(YEAR(MaiDom1+32)=AnoDoCalendário,MONTH(MaiDom1+32)=5),MaiDom1+32,\"\"))","v":"2019-05-29"},{"$f":"IF(DAY(MaiDom1)=1,IF(AND(YEAR(MaiDom1+26)=AnoDoCalendário,MONTH(MaiDom1+26)=5),MaiDom1+26,\"\"),IF(AND(YEAR(MaiDom1+33)=AnoDoCalendário,MONTH(MaiDom1+33)=5),MaiDom1+33,\"\"))","v":"2019-05-30"},{"$f":"IF(DAY(MaiDom1)=1,IF(AND(YEAR(MaiDom1+27)=AnoDoCalendário,MONTH(MaiDom1+27)=5),MaiDom1+27,\"\"),IF(AND(YEAR(MaiDom1+34)=AnoDoCalendário,MONTH(MaiDom1+34)=5),MaiDom1+34,\"\"))","v":"2019-05-31"},{"$f":"IF(DAY(MaiDom1)=1,IF(AND(YEAR(MaiDom1+28)=AnoDoCalendário,MONTH(MaiDom1+28)=5),MaiDom1+28,\"\"),IF(AND(YEAR(MaiDom1+35)=AnoDoCalendário,MONTH(MaiDom1+35)=5),MaiDom1+35,\"\"))","v":""},null,null,{"$f":"IF(DAY(JunDom1)=1,IF(AND(YEAR(JunDom1+22)=AnoDoCalendário,MONTH(JunDom1+22)=6),JunDom1+22,\"\"),IF(AND(YEAR(JunDom1+29)=AnoDoCalendário,MONTH(JunDom1+29)=6),JunDom1+29,\"\"))","v":"2019-06-23"},{"$f":"IF(DAY(JunDom1)=1,IF(AND(YEAR(JunDom1+23)=AnoDoCalendário,MONTH(JunDom1+23)=6),JunDom1+23,\"\"),IF(AND(YEAR(JunDom1+30)=AnoDoCalendário,MONTH(JunDom1+30)=6),JunDom1+30,\"\"))","v":"2019-06-24"},{"$f":"IF(DAY(JunDom1)=1,IF(AND(YEAR(JunDom1+24)=AnoDoCalendário,MONTH(JunDom1+24)=6),JunDom1+24,\"\"),IF(AND(YEAR(JunDom1+31)=AnoDoCalendário,MONTH(JunDom1+31)=6),JunDom1+31,\"\"))","v":"2019-06-25"},{"$f":"IF(DAY(JunDom1)=1,IF(AND(YEAR(JunDom1+25)=AnoDoCalendário,MONTH(JunDom1+25)=6),JunDom1+25,\"\"),IF(AND(YEAR(JunDom1+32)=AnoDoCalendário,MONTH(JunDom1+32)=6),JunDom1+32,\"\"))","v":"2019-06-26"},{"$f":"IF(DAY(JunDom1)=1,IF(AND(YEAR(JunDom1+26)=AnoDoCalendário,MONTH(JunDom1+26)=6),JunDom1+26,\"\"),IF(AND(YEAR(JunDom1+33)=AnoDoCalendário,MONTH(JunDom1+33)=6),JunDom1+33,\"\"))","v":"2019-06-27"},{"$f":"IF(DAY(JunDom1)=1,IF(AND(YEAR(JunDom1+27)=AnoDoCalendário,MONTH(JunDom1+27)=6),JunDom1+27,\"\"),IF(AND(YEAR(JunDom1+34)=AnoDoCalendário,MONTH(JunDom1+34)=6),JunDom1+34,\"\"))","v":"2019-06-28"},{"$f":"IF(DAY(JunDom1)=1,IF(AND(YEAR(JunDom1+28)=AnoDoCalendário,MONTH(JunDom1+28)=6),JunDom1+28,\"\"),IF(AND(YEAR(JunDom1+35)=AnoDoCalendário,MONTH(JunDom1+35)=6),JunDom1+35,\"\"))","v":"2019-06-29"},null,null,{"$f":"IF(DAY(JulDom1)=1,IF(AND(YEAR(JulDom1+22)=AnoDoCalendário,MONTH(JulDom1+22)=7),JulDom1+22,\"\"),IF(AND(YEAR(JulDom1+29)=AnoDoCalendário,MONTH(JulDom1+29)=7),JulDom1+29,\"\"))","v":"2019-07-28"},{"$f":"IF(DAY(JulDom1)=1,IF(AND(YEAR(JulDom1+23)=AnoDoCalendário,MONTH(JulDom1+23)=7),JulDom1+23,\"\"),IF(AND(YEAR(JulDom1+30)=AnoDoCalendário,MONTH(JulDom1+30)=7),JulDom1+30,\"\"))","v":"2019-07-29"},{"$f":"IF(DAY(JulDom1)=1,IF(AND(YEAR(JulDom1+24)=AnoDoCalendário,MONTH(JulDom1+24)=7),JulDom1+24,\"\"),IF(AND(YEAR(JulDom1+31)=AnoDoCalendário,MONTH(JulDom1+31)=7),JulDom1+31,\"\"))","v":"2019-07-30"},{"$f":"IF(DAY(JulDom1)=1,IF(AND(YEAR(JulDom1+25)=AnoDoCalendário,MONTH(JulDom1+25)=7),JulDom1+25,\"\"),IF(AND(YEAR(JulDom1+32)=AnoDoCalendário,MONTH(JulDom1+32)=7),JulDom1+32,\"\"))","v":"2019-07-31"},{"$f":"IF(DAY(JulDom1)=1,IF(AND(YEAR(JulDom1+26)=AnoDoCalendário,MONTH(JulDom1+26)=7),JulDom1+26,\"\"),IF(AND(YEAR(JulDom1+33)=AnoDoCalendário,MONTH(JulDom1+33)=7),JulDom1+33,\"\"))","v":""},{"$f":"IF(DAY(JulDom1)=1,IF(AND(YEAR(JulDom1+27)=AnoDoCalendário,MONTH(JulDom1+27)=7),JulDom1+27,\"\"),IF(AND(YEAR(JulDom1+34)=AnoDoCalendário,MONTH(JulDom1+34)=7),JulDom1+34,\"\"))","v":""},{"$f":"IF(DAY(JulDom1)=1,IF(AND(YEAR(JulDom1+28)=AnoDoCalendário,MONTH(JulDom1+28)=7),JulDom1+28,\"\"),IF(AND(YEAR(JulDom1+35)=AnoDoCalendário,MONTH(JulDom1+35)=7),JulDom1+35,\"\"))","v":""},null,null,{"$f":"IF(DAY(AgoDom1)=1,IF(AND(YEAR(AgoDom1+22)=AnoDoCalendário,MONTH(AgoDom1+22)=8),AgoDom1+22,\"\"),IF(AND(YEAR(AgoDom1+29)=AnoDoCalendário,MONTH(AgoDom1+29)=8),AgoDom1+29,\"\"))","v":"2019-08-25"},{"$f":"IF(DAY(AgoDom1)=1,IF(AND(YEAR(AgoDom1+23)=AnoDoCalendário,MONTH(AgoDom1+23)=8),AgoDom1+23,\"\"),IF(AND(YEAR(AgoDom1+30)=AnoDoCalendário,MONTH(AgoDom1+30)=8),AgoDom1+30,\"\"))","v":"2019-08-26"},{"$f":"IF(DAY(AgoDom1)=1,IF(AND(YEAR(AgoDom1+24)=AnoDoCalendário,MONTH(AgoDom1+24)=8),AgoDom1+24,\"\"),IF(AND(YEAR(AgoDom1+31)=AnoDoCalendário,MONTH(AgoDom1+31)=8),AgoDom1+31,\"\"))","v":"2019-08-27"},{"$f":"IF(DAY(AgoDom1)=1,IF(AND(YEAR(AgoDom1+25)=AnoDoCalendário,MONTH(AgoDom1+25)=8),AgoDom1+25,\"\"),IF(AND(YEAR(AgoDom1+32)=AnoDoCalendário,MONTH(AgoDom1+32)=8),AgoDom1+32,\"\"))","v":"2019-08-28"},{"$f":"IF(DAY(AgoDom1)=1,IF(AND(YEAR(AgoDom1+26)=AnoDoCalendário,MONTH(AgoDom1+26)=8),AgoDom1+26,\"\"),IF(AND(YEAR(AgoDom1+33)=AnoDoCalendário,MONTH(AgoDom1+33)=8),AgoDom1+33,\"\"))","v":"2019-08-29"},{"$f":"IF(DAY(AgoDom1)=1,IF(AND(YEAR(AgoDom1+27)=AnoDoCalendário,MONTH(AgoDom1+27)=8),AgoDom1+27,\"\"),IF(AND(YEAR(AgoDom1+34)=AnoDoCalendário,MONTH(AgoDom1+34)=8),AgoDom1+34,\"\"))","v":"2019-08-30"},{"$f":"IF(DAY(AgoDom1)=1,IF(AND(YEAR(AgoDom1+28)=AnoDoCalendário,MONTH(AgoDom1+28)=8),AgoDom1+28,\"\"),IF(AND(YEAR(AgoDom1+35)=AnoDoCalendário,MONTH(AgoDom1+35)=8),AgoDom1+35,\"\"))","v":"2019-08-31"}]
[null,null,{"$f":"IF(DAY(MaiDom1)=1,IF(AND(YEAR(MaiDom1+29)=AnoDoCalendário,MONTH(MaiDom1+29)=5),MaiDom1+29,\"\"),IF(AND(YEAR(MaiDom1+36)=AnoDoCalendário,MONTH(MaiDom1+36)=5),MaiDom1+36,\"\"))","v":""},{"$f":"IF(DAY(MaiDom1)=1,IF(AND(YEAR(MaiDom1+30)=AnoDoCalendário,MONTH(MaiDom1+30)=5),MaiDom1+30,\"\"),IF(AND(YEAR(MaiDom1+37)=AnoDoCalendário,MONTH(MaiDom1+37)=5),MaiDom1+37,\"\"))","v":""},{"$f":"IF(DAY(MaiDom1)=1,IF(AND(YEAR(MaiDom1+31)=AnoDoCalendário,MONTH(MaiDom1+31)=5),MaiDom1+31,\"\"),IF(AND(YEAR(MaiDom1+38)=AnoDoCalendário,MONTH(MaiDom1+38)=5),MaiDom1+38,\"\"))","v":""},{"$f":"IF(DAY(MaiDom1)=1,IF(AND(YEAR(MaiDom1+32)=AnoDoCalendário,MONTH(MaiDom1+32)=5),MaiDom1+32,\"\"),IF(AND(YEAR(MaiDom1+39)=AnoDoCalendário,MONTH(MaiDom1+39)=5),MaiDom1+39,\"\"))","v":""},{"$f":"IF(DAY(MaiDom1)=1,IF(AND(YEAR(MaiDom1+33)=AnoDoCalendário,MONTH(MaiDom1+33)=5),MaiDom1+33,\"\"),IF(AND(YEAR(MaiDom1+40)=AnoDoCalendário,MONTH(MaiDom1+40)=5),MaiDom1+40,\"\"))","v":""},{"$f":"IF(DAY(MaiDom1)=1,IF(AND(YEAR(MaiDom1+34)=AnoDoCalendário,MONTH(MaiDom1+34)=5),MaiDom1+34,\"\"),IF(AND(YEAR(MaiDom1+41)=AnoDoCalendário,MONTH(MaiDom1+41)=5),MaiDom1+41,\"\"))","v":""},{"$f":"IF(DAY(MaiDom1)=1,IF(AND(YEAR(MaiDom1+35)=AnoDoCalendário,MONTH(MaiDom1+35)=5),MaiDom1+35,\"\"),IF(AND(YEAR(MaiDom1+42)=AnoDoCalendário,MONTH(MaiDom1+42)=5),MaiDom1+42,\"\"))","v":""},null,null,{"$f":"IF(DAY(JunDom1)=1,IF(AND(YEAR(JunDom1+29)=AnoDoCalendário,MONTH(JunDom1+29)=6),JunDom1+29,\"\"),IF(AND(YEAR(JunDom1+36)=AnoDoCalendário,MONTH(JunDom1+36)=6),JunDom1+36,\"\"))","v":"2019-06-30"},{"$f":"IF(DAY(JunDom1)=1,IF(AND(YEAR(JunDom1+30)=AnoDoCalendário,MONTH(JunDom1+30)=6),JunDom1+30,\"\"),IF(AND(YEAR(JunDom1+37)=AnoDoCalendário,MONTH(JunDom1+37)=6),JunDom1+37,\"\"))","v":""},{"$f":"IF(DAY(JunDom1)=1,IF(AND(YEAR(JunDom1+31)=AnoDoCalendário,MONTH(JunDom1+31)=6),JunDom1+31,\"\"),IF(AND(YEAR(JunDom1+38)=AnoDoCalendário,MONTH(JunDom1+38)=6),JunDom1+38,\"\"))","v":""},{"$f":"IF(DAY(JunDom1)=1,IF(AND(YEAR(JunDom1+32)=AnoDoCalendário,MONTH(JunDom1+32)=6),JunDom1+32,\"\"),IF(AND(YEAR(JunDom1+39)=AnoDoCalendário,MONTH(JunDom1+39)=6),JunDom1+39,\"\"))","v":""},{"$f":"IF(DAY(JunDom1)=1,IF(AND(YEAR(JunDom1+33)=AnoDoCalendário,MONTH(JunDom1+33)=6),JunDom1+33,\"\"),IF(AND(YEAR(JunDom1+40)=AnoDoCalendário,MONTH(JunDom1+40)=6),JunDom1+40,\"\"))","v":""},{"$f":"IF(DAY(JunDom1)=1,IF(AND(YEAR(JunDom1+34)=AnoDoCalendário,MONTH(JunDom1+34)=6),JunDom1+34,\"\"),IF(AND(YEAR(JunDom1+41)=AnoDoCalendário,MONTH(JunDom1+41)=6),JunDom1+41,\"\"))","v":""},{"$f":"IF(DAY(JunDom1)=1,IF(AND(YEAR(JunDom1+35)=AnoDoCalendário,MONTH(JunDom1+35)=6),JunDom1+35,\"\"),IF(AND(YEAR(JunDom1+42)=AnoDoCalendário,MONTH(JunDom1+42)=6),JunDom1+42,\"\"))","v":""},null,null,{"$f":"IF(DAY(JulDom1)=1,IF(AND(YEAR(JulDom1+29)=AnoDoCalendário,MONTH(JulDom1+29)=7),JulDom1+29,\"\"),IF(AND(YEAR(JulDom1+36)=AnoDoCalendário,MONTH(JulDom1+36)=7),JulDom1+36,\"\"))","v":""},{"$f":"IF(DAY(JulDom1)=1,IF(AND(YEAR(JulDom1+30)=AnoDoCalendário,MONTH(JulDom1+30)=7),JulDom1+30,\"\"),IF(AND(YEAR(JulDom1+37)=AnoDoCalendário,MONTH(JulDom1+37)=7),JulDom1+37,\"\"))","v":""},{"$f":"IF(DAY(JulDom1)=1,IF(AND(YEAR(JulDom1+31)=AnoDoCalendário,MONTH(JulDom1+31)=7),JulDom1+31,\"\"),IF(AND(YEAR(JulDom1+38)=AnoDoCalendário,MONTH(JulDom1+38)=7),JulDom1+38,\"\"))","v":""},{"$f":"IF(DAY(JulDom1)=1,IF(AND(YEAR(JulDom1+32)=AnoDoCalendário,MONTH(JulDom1+32)=7),JulDom1+32,\"\"),IF(AND(YEAR(JulDom1+39)=AnoDoCalendário,MONTH(JulDom1+39)=7),JulDom1+39,\"\"))","v":""},{"$f":"IF(DAY(JulDom1)=1,IF(AND(YEAR(JulDom1+33)=AnoDoCalendário,MONTH(JulDom1+33)=7),JulDom1+33,\"\"),IF(AND(YEAR(JulDom1+40)=AnoDoCalendário,MONTH(JulDom1+40)=7),JulDom1+40,\"\"))","v":""},{"$f":"IF(DAY(JulDom1)=1,IF(AND(YEAR(JulDom1+34)=AnoDoCalendário,MONTH(JulDom1+34)=7),JulDom1+34,\"\"),IF(AND(YEAR(JulDom1+41)=AnoDoCalendário,MONTH(JulDom1+41)=7),JulDom1+41,\"\"))","v":""},{"$f":"IF(DAY(JulDom1)=1,IF(AND(YEAR(JulDom1+35)=AnoDoCalendário,MONTH(JulDom1+35)=7),JulDom1+35,\"\"),IF(AND(YEAR(JulDom1+42)=AnoDoCalendário,MONTH(JulDom1+42)=7),JulDom1+42,\"\"))","v":""},null,null,{"$f":"IF(DAY(AgoDom1)=1,IF(AND(YEAR(AgoDom1+29)=AnoDoCalendário,MONTH(AgoDom1+29)=8),AgoDom1+29,\"\"),IF(AND(YEAR(AgoDom1+36)=AnoDoCalendário,MONTH(AgoDom1+36)=8),AgoDom1+36,\"\"))","v":""},{"$f":"IF(DAY(AgoDom1)=1,IF(AND(YEAR(AgoDom1+30)=AnoDoCalendário,MONTH(AgoDom1+30)=8),AgoDom1+30,\"\"),IF(AND(YEAR(AgoDom1+37)=AnoDoCalendário,MONTH(AgoDom1+37)=8),AgoDom1+37,\"\"))","v":""},{"$f":"IF(DAY(AgoDom1)=1,IF(AND(YEAR(AgoDom1+31)=AnoDoCalendário,MONTH(AgoDom1+31)=8),AgoDom1+31,\"\"),IF(AND(YEAR(AgoDom1+38)=AnoDoCalendário,MONTH(AgoDom1+38)=8),AgoDom1+38,\"\"))","v":""},{"$f":"IF(DAY(AgoDom1)=1,IF(AND(YEAR(AgoDom1+32)=AnoDoCalendário,MONTH(AgoDom1+32)=8),AgoDom1+32,\"\"),IF(AND(YEAR(AgoDom1+39)=AnoDoCalendário,MONTH(AgoDom1+39)=8),AgoDom1+39,\"\"))","v":""},{"$f":"IF(DAY(AgoDom1)=1,IF(AND(YEAR(AgoDom1+33)=AnoDoCalendário,MONTH(AgoDom1+33)=8),AgoDom1+33,\"\"),IF(AND(YEAR(AgoDom1+40)=AnoDoCalendário,MONTH(AgoDom1+40)=8),AgoDom1+40,\"\"))","v":""},{"$f":"IF(DAY(AgoDom1)=1,IF(AND(YEAR(AgoDom1+34)=AnoDoCalendário,MONTH(AgoDom1+34)=8),AgoDom1+34,\"\"),IF(AND(YEAR(AgoDom1+41)=AnoDoCalendário,MONTH(AgoDom1+41)=8),AgoDom1+41,\"\"))","v":""},{"$f":"IF(DAY(AgoDom1)=1,IF(AND(YEAR(AgoDom1+35)=AnoDoCalendário,MONTH(AgoDom1+35)=8),AgoDom1+35,\"\"),IF(AND(YEAR(AgoDom1+42)=AnoDoCalendário,MONTH(AgoDom1+42)=8),AgoDom1+42,\"\"))","v":""}]
["O calendário de Setembro está nas células C43 à I49, o calendário de Outubro nas células L43 à R49, o calendário de Novembro nas células U43 à AA49 e o calendário de Dezembro nas células AD43 à AJ49."]
["Os nomes dos Meses estão nesta linha. O rótulo de Setembro está na célula C42, o de Outubro na L42, o de Novembro na U42 e o de Dezembro na AD42.",null,{"$f":"DATE(AnoDoCalendário,9,1)","v":"2019-09-01"},{"$nulls":8},{"$f":"DATE(AnoDoCalendário,10,1)","v":"2019-10-01"},{"$nulls":8},{"$f":"DATE(AnoDoCalendário,11,1)","v":"2019-11-01"},{"$nulls":8},{"$f":"DATE(AnoDoCalendário,12,1)","v":"2019-12-01"}]
["Os nomes dos Dias da Semana estão nesta linha. Os nomes dos dias da semana de Setembro estão nas células C43 à I43, os de Outubro nas células L43 à R43, os de Novembro nas células U43 à AA43 e os de Dezembro nas células AD43 à AJ43.",null,"Dom","Seg","Ter","Qua","Qui","Sex","Sab",null,null,"Dom","Seg","Ter","Qua","Qui","Sex","Sab",null,null,"Dom","Seg","Ter","Qua","Qui","Sex","Sab",null,null,"Dom","Seg","Ter","Qua","Qui","Sex","Sab"]
["As Datas são atualizadas automaticamente nesta linha. As datas de Setembro estão nas células à direita, células C44 à I49, as de Outubro nas células L44 à R49, as de Novembro nas células U44 à AA49 e as de Dezembro nas células AD44 à AJ49.",null,{"$f":"IF(DAY(SetDom1)=1,\"\",IF(AND(YEAR(SetDom1+1)=AnoDoCalendário,MONTH(SetDom1+1)=9),SetDom1+1,\"\"))","v":"2019-09-01"},{"$f":"IF(DAY(SetDom1)=1,\"\",IF(AND(YEAR(SetDom1+2)=AnoDoCalendário,MONTH(SetDom1+2)=9),SetDom1+2,\"\"))","v":"2019-09-02"},{"$f":"IF(DAY(SetDom1)=1,\"\",IF(AND(YEAR(SetDom1+3)=AnoDoCalendário,MONTH(SetDom1+3)=9),SetDom1+3,\"\"))","v":"2019-09-03"},{"$f":"IF(DAY(SetDom1)=1,\"\",IF(AND(YEAR(SetDom1+4)=AnoDoCalendário,MONTH(SetDom1+4)=9),SetDom1+4,\"\"))","v":"2019-09-04"},{"$f":"IF(DAY(SetDom1)=1,\"\",IF(AND(YEAR(SetDom1+5)=AnoDoCalendário,MONTH(SetDom1+5)=9),SetDom1+5,\"\"))","v":"2019-09-05"},{"$f":"IF(DAY(SetDom1)=1,\"\",IF(AND(YEAR(SetDom1+6)=AnoDoCalendário,MONTH(SetDom1+6)=9),SetDom1+6,\"\"))","v":"2019-09-06"},{"$f":"IF(DAY(SetDom1)=1,IF(AND(YEAR(SetDom1)=AnoDoCalendário,MONTH(SetDom1)=9),SetDom1,\"\"),IF(AND(YEAR(SetDom1+7)=AnoDoCalendário,MONTH(SetDom1+7)=9),SetDom1+7,\"\"))","v":"2019-09-07"},null,null,{"$f":"IF(DAY(OutDom1)=1,\"\",IF(AND(YEAR(OutDom1+1)=AnoDoCalendário,MONTH(OutDom1+1)=10),OutDom1+1,\"\"))","v":""},{"$f":"IF(DAY(OutDom1)=1,\"\",IF(AND(YEAR(OutDom1+2)=AnoDoCalendário,MONTH(OutDom1+2)=10),OutDom1+2,\"\"))","v":""},{"$f":"IF(DAY(OutDom1)=1,\"\",IF(AND(YEAR(OutDom1+3)=AnoDoCalendário,MONTH(OutDom1+3)=10),OutDom1+3,\"\"))","v":"2019-10-01"},{"$f":"IF(DAY(OutDom1)=1,\"\",IF(AND(YEAR(OutDom1+4)=AnoDoCalendário,MONTH(OutDom1+4)=10),OutDom1+4,\"\"))","v":"2019-10-02"},{"$f":"IF(DAY(OutDom1)=1,\"\",IF(AND(YEAR(OutDom1+5)=AnoDoCalendário,MONTH(OutDom1+5)=10),OutDom1+5,\"\"))","v":"2019-10-03"},{"$f":"IF(DAY(OutDom1)=1,\"\",IF(AND(YEAR(OutDom1+6)=AnoDoCalendário,MONTH(OutDom1+6)=10),OutDom1+6,\"\"))","v":"2019-10-04"},{"$f":"IF(DAY(OutDom1)=1,IF(AND(YEAR(OutDom1)=AnoDoCalendário,MONTH(OutDom1)=10),OutDom1,\"\"),IF(AND(YEAR(OutDom1+7)=AnoDoCalendário,MONTH(OutDom1+7)=10),OutDom1+7,\"\"))","v":"2019-10-05"},null,null,{"$f":"IF(DAY(NovDom1)=1,\"\",IF(AND(YEAR(NovDom1+1)=AnoDoCalendário,MONTH(NovDom1+1)=11),NovDom1+1,\"\"))","v":""},{"$f":"IF(DAY(NovDom1)=1,\"\",IF(AND(YEAR(NovDom1+2)=AnoDoCalendário,MONTH(NovDom1+2)=11),NovDom1+2,\"\"))","v":""},{"$f":"IF(DAY(NovDom1)=1,\"\",IF(AND(YEAR(NovDom1+3)=AnoDoCalendário,MONTH(NovDom1+3)=11),NovDom1+3,\"\"))","v":""},{"$f":"IF(DAY(NovDom1)=1,\"\",IF(AND(YEAR(NovDom1+4)=AnoDoCalendário,MONTH(NovDom1+4)=11),NovDom1+4,\"\"))","v":""},{"$f":"IF(DAY(NovDom1)=1,\"\",IF(AND(YEAR(NovDom1+5)=AnoDoCalendário,MONTH(NovDom1+5)=11),NovDom1+5,\"\"))","v":""},{"$f":"IF(DAY(NovDom1)=1,\"\",IF(AND(YEAR(NovDom1+6)=AnoDoCalendário,MONTH(NovDom1+6)=11),NovDom1+6,\"\"))","v":"2019-11-01"},{"$f":"IF(DAY(NovDom1)=1,IF(AND(YEAR(NovDom1)=AnoDoCalendário,MONTH(NovDom1)=11),NovDom1,\"\"),IF(AND(YEAR(NovDom1+7)=AnoDoCalendário,MONTH(NovDom1+7)=11),NovDom1+7,\"\"))","v":"2019-11-02"},null,null,{"$f":"IF(DAY(DezDom1)=1,\"\",IF(AND(YEAR(DezDom1+1)=AnoDoCalendário,MONTH(DezDom1+1)=12),DezDom1+1,\"\"))","v":"2019-12-01"},{"$f":"IF(DAY(DezDom1)=1,\"\",IF(AND(YEAR(DezDom1+2)=AnoDoCalendário,MONTH(DezDom1+2)=12),DezDom1+2,\"\"))","v":"2019-12-02"},{"$f":"IF(DAY(DezDom1)=1,\"\",IF(AND(YEAR(DezDom1+3)=AnoDoCalendário,MONTH(DezDom1+3)=12),DezDom1+3,\"\"))","v":"2019-12-03"},{"$f":"IF(DAY(DezDom1)=1,\"\",IF(AND(YEAR(DezDom1+4)=AnoDoCalendário,MONTH(DezDom1+4)=12),DezDom1+4,\"\"))","v":"2019-12-04"},{"$f":"IF(DAY(DezDom1)=1,\"\",IF(AND(YEAR(DezDom1+5)=AnoDoCalendário,MONTH(DezDom1+5)=12),DezDom1+5,\"\"))","v":"2019-12-05"},{"$f":"IF(DAY(DezDom1)=1,\"\",IF(AND(YEAR(DezDom1+6)=AnoDoCalendário,MONTH(DezDom1+6)=12),DezDom1+6,\"\"))","v":"2019-12-06"},{"$f":"IF(DAY(DezDom1)=1,IF(AND(YEAR(DezDom1)=AnoDoCalendário,MONTH(DezDom1)=12),DezDom1,\"\"),IF(AND(YEAR(DezDom1+7)=AnoDoCalendário,MONTH(DezDom1+7)=12),DezDom1+7,\"\"))","v":"2019-12-07"}]
[null,null,{"$f":"IF(DAY(SetDom1)=1,IF(AND(YEAR(SetDom1+1)=AnoDoCalendário,MONTH(SetDom1+1)=9),SetDom1+1,\"\"),IF(AND(YEAR(SetDom1+8)=AnoDoCalendário,MONTH(SetDom1+8)=9),SetDom1+8,\"\"))","v":"2019-09-08"},{"$f":"IF(DAY(SetDom1)=1,IF(AND(YEAR(SetDom1+2)=AnoDoCalendário,MONTH(SetDom1+2)=9),SetDom1+2,\"\"),IF(AND(YEAR(SetDom1+9)=AnoDoCalendário,MONTH(SetDom1+9)=9),SetDom1+9,\"\"))","v":"2019-09-09"},{"$f":"IF(DAY(SetDom1)=1,IF(AND(YEAR(SetDom1+3)=AnoDoCalendário,MONTH(SetDom1+3)=9),SetDom1+3,\"\"),IF(AND(YEAR(SetDom1+10)=AnoDoCalendário,MONTH(SetDom1+10)=9),SetDom1+10,\"\"))","v":"2019-09-10"},{"$f":"IF(DAY(SetDom1)=1,IF(AND(YEAR(SetDom1+4)=AnoDoCalendário,MONTH(SetDom1+4)=9),SetDom1+4,\"\"),IF(AND(YEAR(SetDom1+11)=AnoDoCalendário,MONTH(SetDom1+11)=9),SetDom1+11,\"\"))","v":"2019-09-11"},{"$f":"IF(DAY(SetDom1)=1,IF(AND(YEAR(SetDom1+5)=AnoDoCalendário,MONTH(SetDom1+5)=9),SetDom1+5,\"\"),IF(AND(YEAR(SetDom1+12)=AnoDoCalendário,MONTH(SetDom1+12)=9),SetDom1+12,\"\"))","v":"2019-09-12"},{"$f":"IF(DAY(SetDom1)=1,IF(AND(YEAR(SetDom1+6)=AnoDoCalendário,MONTH(SetDom1+6)=9),SetDom1+6,\"\"),IF(AND(YEAR(SetDom1+13)=AnoDoCalendário,MONTH(SetDom1+13)=9),SetDom1+13,\"\"))","v":"2019-09-13"},{"$f":"IF(DAY(SetDom1)=1,IF(AND(YEAR(SetDom1+7)=AnoDoCalendário,MONTH(SetDom1+7)=9),SetDom1+7,\"\"),IF(AND(YEAR(SetDom1+14)=AnoDoCalendário,MONTH(SetDom1+14)=9),SetDom1+14,\"\"))","v":"2019-09-14"},null,null,{"$f":"IF(DAY(OutDom1)=1,IF(AND(YEAR(OutDom1+1)=AnoDoCalendário,MONTH(OutDom1+1)=10),OutDom1+1,\"\"),IF(AND(YEAR(OutDom1+8)=AnoDoCalendário,MONTH(OutDom1+8)=10),OutDom1+8,\"\"))","v":"2019-10-06"},{"$f":"IF(DAY(OutDom1)=1,IF(AND(YEAR(OutDom1+2)=AnoDoCalendário,MONTH(OutDom1+2)=10),OutDom1+2,\"\"),IF(AND(YEAR(OutDom1+9)=AnoDoCalendário,MONTH(OutDom1+9)=10),OutDom1+9,\"\"))","v":"2019-10-07"},{"$f":"IF(DAY(OutDom1)=1,IF(AND(YEAR(OutDom1+3)=AnoDoCalendário,MONTH(OutDom1+3)=10),OutDom1+3,\"\"),IF(AND(YEAR(OutDom1+10)=AnoDoCalendário,MONTH(OutDom1+10)=10),OutDom1+10,\"\"))","v":"2019-10-08"},{"$f":"IF(DAY(OutDom1)=1,IF(AND(YEAR(OutDom1+4)=AnoDoCalendário,MONTH(OutDom1+4)=10),OutDom1+4,\"\"),IF(AND(YEAR(OutDom1+11)=AnoDoCalendário,MONTH(OutDom1+11)=10),OutDom1+11,\"\"))","v":"2019-10-09"},{"$f":"IF(DAY(OutDom1)=1,IF(AND(YEAR(OutDom1+5)=AnoDoCalendário,MONTH(OutDom1+5)=10),OutDom1+5,\"\"),IF(AND(YEAR(OutDom1+12)=AnoDoCalendário,MONTH(OutDom1+12)=10),OutDom1+12,\"\"))","v":"2019-10-10"},{"$f":"IF(DAY(OutDom1)=1,IF(AND(YEAR(OutDom1+6)=AnoDoCalendário,MONTH(OutDom1+6)=10),OutDom1+6,\"\"),IF(AND(YEAR(OutDom1+13)=AnoDoCalendário,MONTH(OutDom1+13)=10),OutDom1+13,\"\"))","v":"2019-10-11"},{"$f":"IF(DAY(OutDom1)=1,IF(AND(YEAR(OutDom1+7)=AnoDoCalendário,MONTH(OutDom1+7)=10),OutDom1+7,\"\"),IF(AND(YEAR(OutDom1+14)=AnoDoCalendário,MONTH(OutDom1+14)=10),OutDom1+14,\"\"))","v":"2019-10-12"},null,null,{"$f":"IF(DAY(NovDom1)=1,IF(AND(YEAR(NovDom1+1)=AnoDoCalendário,MONTH(NovDom1+1)=11),NovDom1+1,\"\"),IF(AND(YEAR(NovDom1+8)=AnoDoCalendário,MONTH(NovDom1+8)=11),NovDom1+8,\"\"))","v":"2019-11-03"},{"$f":"IF(DAY(NovDom1)=1,IF(AND(YEAR(NovDom1+2)=AnoDoCalendário,MONTH(NovDom1+2)=11),NovDom1+2,\"\"),IF(AND(YEAR(NovDom1+9)=AnoDoCalendário,MONTH(NovDom1+9)=11),NovDom1+9,\"\"))","v":"2019-11-04"},{"$f":"IF(DAY(NovDom1)=1,IF(AND(YEAR(NovDom1+3)=AnoDoCalendário,MONTH(NovDom1+3)=11),NovDom1+3,\"\"),IF(AND(YEAR(NovDom1+10)=AnoDoCalendário,MONTH(NovDom1+10)=11),NovDom1+10,\"\"))","v":"2019-11-05"},{"$f":"IF(DAY(NovDom1)=1,IF(AND(YEAR(NovDom1+4)=AnoDoCalendário,MONTH(NovDom1+4)=11),NovDom1+4,\"\"),IF(AND(YEAR(NovDom1+11)=AnoDoCalendário,MONTH(NovDom1+11)=11),NovDom1+11,\"\"))","v":"2019-11-06"},{"$f":"IF(DAY(NovDom1)=1,IF(AND(YEAR(NovDom1+5)=AnoDoCalendário,MONTH(NovDom1+5)=11),NovDom1+5,\"\"),IF(AND(YEAR(NovDom1+12)=AnoDoCalendário,MONTH(NovDom1+12)=11),NovDom1+12,\"\"))","v":"2019-11-07"},{"$f":"IF(DAY(NovDom1)=1,IF(AND(YEAR(NovDom1+6)=AnoDoCalendário,MONTH(NovDom1+6)=11),NovDom1+6,\"\"),IF(AND(YEAR(NovDom1+13)=AnoDoCalendário,MONTH(NovDom1+13)=11),NovDom1+13,\"\"))","v":"2019-11-08"},{"$f":"IF(DAY(NovDom1)=1,IF(AND(YEAR(NovDom1+7)=AnoDoCalendário,MONTH(NovDom1+7)=11),NovDom1+7,\"\"),IF(AND(YEAR(NovDom1+14)=AnoDoCalendário,MONTH(NovDom1+14)=11),NovDom1+14,\"\"))","v":"2019-11-09"},null,null,{"$f":"IF(DAY(DezDom1)=1,IF(AND(YEAR(DezDom1+1)=AnoDoCalendário,MONTH(DezDom1+1)=12),DezDom1+1,\"\"),IF(AND(YEAR(DezDom1+8)=AnoDoCalendário,MONTH(DezDom1+8)=12),DezDom1+8,\"\"))","v":"2019-12-08"},{"$f":"IF(DAY(DezDom1)=1,IF(AND(YEAR(DezDom1+2)=AnoDoCalendário,MONTH(DezDom1+2)=12),DezDom1+2,\"\"),IF(AND(YEAR(DezDom1+9)=AnoDoCalendário,MONTH(DezDom1+9)=12),DezDom1+9,\"\"))","v":"2019-12-09"},{"$f":"IF(DAY(DezDom1)=1,IF(AND(YEAR(DezDom1+3)=AnoDoCalendário,MONTH(DezDom1+3)=12),DezDom1+3,\"\"),IF(AND(YEAR(DezDom1+10)=AnoDoCalendário,MONTH(DezDom1+10)=12),DezDom1+10,\"\"))","v":"2019-12-10"},{"$f":"IF(DAY(DezDom1)=1,IF(AND(YEAR(DezDom1+4)=AnoDoCalendário,MONTH(DezDom1+4)=12),DezDom1+4,\"\"),IF(AND(YEAR(DezDom1+11)=AnoDoCalendário,MONTH(DezDom1+11)=12),DezDom1+11,\"\"))","v":"2019-12-11"},{"$f":"IF(DAY(DezDom1)=1,IF(AND(YEAR(DezDom1+5)=AnoDoCalendário,MONTH(DezDom1+5)=12),DezDom1+5,\"\"),IF(AND(YEAR(DezDom1+12)=AnoDoCalendário,MONTH(DezDom1+12)=12),DezDom1+12,\"\"))","v":"2019-12-12"},{"$f":"IF(DAY(DezDom1)=1,IF(AND(YEAR(DezDom1+6)=AnoDoCalendário,MONTH(DezDom1+6)=12),DezDom1+6,\"\"),IF(AND(YEAR(DezDom1+13)=AnoDoCalendário,MONTH(DezDom1+13)=12),DezDom1+13,\"\"))","v":"2019-12-13"},{"$f":"IF(DAY(DezDom1)=1,IF(AND(YEAR(DezDom1+7)=AnoDoCalendário,MONTH(DezDom1+7)=12),DezDom1+7,\"\"),IF(AND(YEAR(DezDom1+14)=AnoDoCalendário,MONTH(DezDom1+14)=12),DezDom1+14,\"\"))","v":"2019-12-14"}]
[null,null,{"$f":"IF(DAY(SetDom1)=1,IF(AND(YEAR(SetDom1+8)=AnoDoCalendário,MONTH(SetDom1+8)=9),SetDom1+8,\"\"),IF(AND(YEAR(SetDom1+15)=AnoDoCalendário,MONTH(SetDom1+15)=9),SetDom1+15,\"\"))","v":"2019-09-15"},{"$f":"IF(DAY(SetDom1)=1,IF(AND(YEAR(SetDom1+9)=AnoDoCalendário,MONTH(SetDom1+9)=9),SetDom1+9,\"\"),IF(AND(YEAR(SetDom1+16)=AnoDoCalendário,MONTH(SetDom1+16)=9),SetDom1+16,\"\"))","v":"2019-09-16"},{"$f":"IF(DAY(SetDom1)=1,IF(AND(YEAR(SetDom1+10)=AnoDoCalendário,MONTH(SetDom1+10)=9),SetDom1+10,\"\"),IF(AND(YEAR(SetDom1+17)=AnoDoCalendário,MONTH(SetDom1+17)=9),SetDom1+17,\"\"))","v":"2019-09-17"},{"$f":"IF(DAY(SetDom1)=1,IF(AND(YEAR(SetDom1+11)=AnoDoCalendário,MONTH(SetDom1+11)=9),SetDom1+11,\"\"),IF(AND(YEAR(SetDom1+18)=AnoDoCalendário,MONTH(SetDom1+18)=9),SetDom1+18,\"\"))","v":"2019-09-18"},{"$f":"IF(DAY(SetDom1)=1,IF(AND(YEAR(SetDom1+12)=AnoDoCalendário,MONTH(SetDom1+12)=9),SetDom1+12,\"\"),IF(AND(YEAR(SetDom1+19)=AnoDoCalendário,MONTH(SetDom1+19)=9),SetDom1+19,\"\"))","v":"2019-09-19"},{"$f":"IF(DAY(SetDom1)=1,IF(AND(YEAR(SetDom1+13)=AnoDoCalendário,MONTH(SetDom1+13)=9),SetDom1+13,\"\"),IF(AND(YEAR(SetDom1+20)=AnoDoCalendário,MONTH(SetDom1+20)=9),SetDom1+20,\"\"))","v":"2019-09-20"},{"$f":"IF(DAY(SetDom1)=1,IF(AND(YEAR(SetDom1+14)=AnoDoCalendário,MONTH(SetDom1+14)=9),SetDom1+14,\"\"),IF(AND(YEAR(SetDom1+21)=AnoDoCalendário,MONTH(SetDom1+21)=9),SetDom1+21,\"\"))","v":"2019-09-21"},null,null,{"$f":"IF(DAY(OutDom1)=1,IF(AND(YEAR(OutDom1+8)=AnoDoCalendário,MONTH(OutDom1+8)=10),OutDom1+8,\"\"),IF(AND(YEAR(OutDom1+15)=AnoDoCalendário,MONTH(OutDom1+15)=10),OutDom1+15,\"\"))","v":"2019-10-13"},{"$f":"IF(DAY(OutDom1)=1,IF(AND(YEAR(OutDom1+9)=AnoDoCalendário,MONTH(OutDom1+9)=10),OutDom1+9,\"\"),IF(AND(YEAR(OutDom1+16)=AnoDoCalendário,MONTH(OutDom1+16)=10),OutDom1+16,\"\"))","v":"2019-10-14"},{"$f":"IF(DAY(OutDom1)=1,IF(AND(YEAR(OutDom1+10)=AnoDoCalendário,MONTH(OutDom1+10)=10),OutDom1+10,\"\"),IF(AND(YEAR(OutDom1+17)=AnoDoCalendário,MONTH(OutDom1+17)=10),OutDom1+17,\"\"))","v":"2019-10-15"},{"$f":"IF(DAY(OutDom1)=1,IF(AND(YEAR(OutDom1+11)=AnoDoCalendário,MONTH(OutDom1+11)=10),OutDom1+11,\"\"),IF(AND(YEAR(OutDom1+18)=AnoDoCalendário,MONTH(OutDom1+18)=10),OutDom1+18,\"\"))","v":"2019-10-16"},{"$f":"IF(DAY(OutDom1)=1,IF(AND(YEAR(OutDom1+12)=AnoDoCalendário,MONTH(OutDom1+12)=10),OutDom1+12,\"\"),IF(AND(YEAR(OutDom1+19)=AnoDoCalendário,MONTH(OutDom1+19)=10),OutDom1+19,\"\"))","v":"2019-10-17"},{"$f":"IF(DAY(OutDom1)=1,IF(AND(YEAR(OutDom1+13)=AnoDoCalendário,MONTH(OutDom1+13)=10),OutDom1+13,\"\"),IF(AND(YEAR(OutDom1+20)=AnoDoCalendário,MONTH(OutDom1+20)=10),OutDom1+20,\"\"))","v":"2019-10-18"},{"$f":"IF(DAY(OutDom1)=1,IF(AND(YEAR(OutDom1+14)=AnoDoCalendário,MONTH(OutDom1+14)=10),OutDom1+14,\"\"),IF(AND(YEAR(OutDom1+21)=AnoDoCalendário,MONTH(OutDom1+21)=10),OutDom1+21,\"\"))","v":"2019-10-19"},null,null,{"$f":"IF(DAY(NovDom1)=1,IF(AND(YEAR(NovDom1+8)=AnoDoCalendário,MONTH(NovDom1+8)=11),NovDom1+8,\"\"),IF(AND(YEAR(NovDom1+15)=AnoDoCalendário,MONTH(NovDom1+15)=11),NovDom1+15,\"\"))","v":"2019-11-10"},{"$f":"IF(DAY(NovDom1)=1,IF(AND(YEAR(NovDom1+9)=AnoDoCalendário,MONTH(NovDom1+9)=11),NovDom1+9,\"\"),IF(AND(YEAR(NovDom1+16)=AnoDoCalendário,MONTH(NovDom1+16)=11),NovDom1+16,\"\"))","v":"2019-11-11"},{"$f":"IF(DAY(NovDom1)=1,IF(AND(YEAR(NovDom1+10)=AnoDoCalendário,MONTH(NovDom1+10)=11),NovDom1+10,\"\"),IF(AND(YEAR(NovDom1+17)=AnoDoCalendário,MONTH(NovDom1+17)=11),NovDom1+17,\"\"))","v":"2019-11-12"},{"$f":"IF(DAY(NovDom1)=1,IF(AND(YEAR(NovDom1+11)=AnoDoCalendário,MONTH(NovDom1+11)=11),NovDom1+11,\"\"),IF(AND(YEAR(NovDom1+18)=AnoDoCalendário,MONTH(NovDom1+18)=11),NovDom1+18,\"\"))","v":"2019-11-13"},{"$f":"IF(DAY(NovDom1)=1,IF(AND(YEAR(NovDom1+12)=AnoDoCalendário,MONTH(NovDom1+12)=11),NovDom1+12,\"\"),IF(AND(YEAR(NovDom1+19)=AnoDoCalendário,MONTH(NovDom1+19)=11),NovDom1+19,\"\"))","v":"2019-11-14"},{"$f":"IF(DAY(NovDom1)=1,IF(AND(YEAR(NovDom1+13)=AnoDoCalendário,MONTH(NovDom1+13)=11),NovDom1+13,\"\"),IF(AND(YEAR(NovDom1+20)=AnoDoCalendário,MONTH(NovDom1+20)=11),NovDom1+20,\"\"))","v":"2019-11-15"},{"$f":"IF(DAY(NovDom1)=1,IF(AND(YEAR(NovDom1+14)=AnoDoCalendário,MONTH(NovDom1+14)=11),NovDom1+14,\"\"),IF(AND(YEAR(NovDom1+21)=AnoDoCalendário,MONTH(NovDom1+21)=11),NovDom1+21,\"\"))","v":"2019-11-16"},null,null,{"$f":"IF(DAY(DezDom1)=1,IF(AND(YEAR(DezDom1+8)=AnoDoCalendário,MONTH(DezDom1+8)=12),DezDom1+8,\"\"),IF(AND(YEAR(DezDom1+15)=AnoDoCalendário,MONTH(DezDom1+15)=12),DezDom1+15,\"\"))","v":"2019-12-15"},{"$f":"IF(DAY(DezDom1)=1,IF(AND(YEAR(DezDom1+9)=AnoDoCalendário,MONTH(DezDom1+9)=12),DezDom1+9,\"\"),IF(AND(YEAR(DezDom1+16)=AnoDoCalendário,MONTH(DezDom1+16)=12),DezDom1+16,\"\"))","v":"2019-12-16"},{"$f":"IF(DAY(DezDom1)=1,IF(AND(YEAR(DezDom1+10)=AnoDoCalendário,MONTH(DezDom1+10)=12),DezDom1+10,\"\"),IF(AND(YEAR(DezDom1+17)=AnoDoCalendário,MONTH(DezDom1+17)=12),DezDom1+17,\"\"))","v":"2019-12-17"},{"$f":"IF(DAY(DezDom1)=1,IF(AND(YEAR(DezDom1+11)=AnoDoCalendário,MONTH(DezDom1+11)=12),DezDom1+11,\"\"),IF(AND(YEAR(DezDom1+18)=AnoDoCalendário,MONTH(DezDom1+18)=12),DezDom1+18,\"\"))","v":"2019-12-18"},{"$f":"IF(DAY(DezDom1)=1,IF(AND(YEAR(DezDom1+12)=AnoDoCalendário,MONTH(DezDom1+12)=12),DezDom1+12,\"\"),IF(AND(YEAR(DezDom1+19)=AnoDoCalendário,MONTH(DezDom1+19)=12),DezDom1+19,\"\"))","v":"2019-12-19"},{"$f":"IF(DAY(DezDom1)=1,IF(AND(YEAR(DezDom1+13)=AnoDoCalendário,MONTH(DezDom1+13)=12),DezDom1+13,\"\"),IF(AND(YEAR(DezDom1+20)=AnoDoCalendário,MONTH(DezDom1+20)=12),DezDom1+20,\"\"))","v":"2019-12-20"},{"$f":"IF(DAY(DezDom1)=1,IF(AND(YEAR(DezDom1+14)=AnoDoCalendário,MONTH(DezDom1+14)=12),DezDom1+14,\"\"),IF(AND(YEAR(DezDom1+21)=AnoDoCalendário,MONTH(DezDom1+21)=12),DezDom1+21,\"\"))","v":"2019-12-21"}]
[null,null,{"$f":"IF(DAY(SetDom1)=1,IF(AND(YEAR(SetDom1+15)=AnoDoCalendário,MONTH(SetDom1+15)=9),SetDom1+15,\"\"),IF(AND(YEAR(SetDom1+22)=AnoDoCalendário,MONTH(SetDom1+22)=9),SetDom1+22,\"\"))","v":"2019-09-22"},{"$f":"IF(DAY(SetDom1)=1,IF(AND(YEAR(SetDom1+16)=AnoDoCalendário,MONTH(SetDom1+16)=9),SetDom1+16,\"\"),IF(AND(YEAR(SetDom1+23)=AnoDoCalendário,MONTH(SetDom1+23)=9),SetDom1+23,\"\"))","v":"2019-09-23"},{"$f":"IF(DAY(SetDom1)=1,IF(AND(YEAR(SetDom1+17)=AnoDoCalendário,MONTH(SetDom1+17)=9),SetDom1+17,\"\"),IF(AND(YEAR(SetDom1+24)=AnoDoCalendário,MONTH(SetDom1+24)=9),SetDom1+24,\"\"))","v":"2019-09-24"},{"$f":"IF(DAY(SetDom1)=1,IF(AND(YEAR(SetDom1+18)=AnoDoCalendário,MONTH(SetDom1+18)=9),SetDom1+18,\"\"),IF(AND(YEAR(SetDom1+25)=AnoDoCalendário,MONTH(SetDom1+25)=9),SetDom1+25,\"\"))","v":"2019-09-25"},{"$f":"IF(DAY(SetDom1)=1,IF(AND(YEAR(SetDom1+19)=AnoDoCalendário,MONTH(SetDom1+19)=9),SetDom1+19,\"\"),IF(AND(YEAR(SetDom1+26)=AnoDoCalendário,MONTH(SetDom1+26)=9),SetDom1+26,\"\"))","v":"2019-09-26"},{"$f":"IF(DAY(SetDom1)=1,IF(AND(YEAR(SetDom1+20)=AnoDoCalendário,MONTH(SetDom1+20)=9),SetDom1+20,\"\"),IF(AND(YEAR(SetDom1+27)=AnoDoCalendário,MONTH(SetDom1+27)=9),SetDom1+27,\"\"))","v":"2019-09-27"},{"$f":"IF(DAY(SetDom1)=1,IF(AND(YEAR(SetDom1+21)=AnoDoCalendário,MONTH(SetDom1+21)=9),SetDom1+21,\"\"),IF(AND(YEAR(SetDom1+28)=AnoDoCalendário,MONTH(SetDom1+28)=9),SetDom1+28,\"\"))","v":"2019-09-28"},null,null,{"$f":"IF(DAY(OutDom1)=1,IF(AND(YEAR(OutDom1+15)=AnoDoCalendário,MONTH(OutDom1+15)=10),OutDom1+15,\"\"),IF(AND(YEAR(OutDom1+22)=AnoDoCalendário,MONTH(OutDom1+22)=10),OutDom1+22,\"\"))","v":"2019-10-20"},{"$f":"IF(DAY(OutDom1)=1,IF(AND(YEAR(OutDom1+16)=AnoDoCalendário,MONTH(OutDom1+16)=10),OutDom1+16,\"\"),IF(AND(YEAR(OutDom1+23)=AnoDoCalendário,MONTH(OutDom1+23)=10),OutDom1+23,\"\"))","v":"2019-10-21"},{"$f":"IF(DAY(OutDom1)=1,IF(AND(YEAR(OutDom1+17)=AnoDoCalendário,MONTH(OutDom1+17)=10),OutDom1+17,\"\"),IF(AND(YEAR(OutDom1+24)=AnoDoCalendário,MONTH(OutDom1+24)=10),OutDom1+24,\"\"))","v":"2019-10-22"},{"$f":"IF(DAY(OutDom1)=1,IF(AND(YEAR(OutDom1+18)=AnoDoCalendário,MONTH(OutDom1+18)=10),OutDom1+18,\"\"),IF(AND(YEAR(OutDom1+25)=AnoDoCalendário,MONTH(OutDom1+25)=10),OutDom1+25,\"\"))","v":"2019-10-23"},{"$f":"IF(DAY(OutDom1)=1,IF(AND(YEAR(OutDom1+19)=AnoDoCalendário,MONTH(OutDom1+19)=10),OutDom1+19,\"\"),IF(AND(YEAR(OutDom1+26)=AnoDoCalendário,MONTH(OutDom1+26)=10),OutDom1+26,\"\"))","v":"2019-10-24"},{"$f":"IF(DAY(OutDom1)=1,IF(AND(YEAR(OutDom1+20)=AnoDoCalendário,MONTH(OutDom1+20)=10),OutDom1+20,\"\"),IF(AND(YEAR(OutDom1+27)=AnoDoCalendário,MONTH(OutDom1+27)=10),OutDom1+27,\"\"))","v":"2019-10-25"},{"$f":"IF(DAY(OutDom1)=1,IF(AND(YEAR(OutDom1+21)=AnoDoCalendário,MONTH(OutDom1+21)=10),OutDom1+21,\"\"),IF(AND(YEAR(OutDom1+28)=AnoDoCalendário,MONTH(OutDom1+28)=10),OutDom1+28,\"\"))","v":"2019-10-26"},null,null,{"$f":"IF(DAY(NovDom1)=1,IF(AND(YEAR(NovDom1+15)=AnoDoCalendário,MONTH(NovDom1+15)=11),NovDom1+15,\"\"),IF(AND(YEAR(NovDom1+22)=AnoDoCalendário,MONTH(NovDom1+22)=11),NovDom1+22,\"\"))","v":"2019-11-17"},{"$f":"IF(DAY(NovDom1)=1,IF(AND(YEAR(NovDom1+16)=AnoDoCalendário,MONTH(NovDom1+16)=11),NovDom1+16,\"\"),IF(AND(YEAR(NovDom1+23)=AnoDoCalendário,MONTH(NovDom1+23)=11),NovDom1+23,\"\"))","v":"2019-11-18"},{"$f":"IF(DAY(NovDom1)=1,IF(AND(YEAR(NovDom1+17)=AnoDoCalendário,MONTH(NovDom1+17)=11),NovDom1+17,\"\"),IF(AND(YEAR(NovDom1+24)=AnoDoCalendário,MONTH(NovDom1+24)=11),NovDom1+24,\"\"))","v":"2019-11-19"},{"$f":"IF(DAY(NovDom1)=1,IF(AND(YEAR(NovDom1+18)=AnoDoCalendário,MONTH(NovDom1+18)=11),NovDom1+18,\"\"),IF(AND(YEAR(NovDom1+25)=AnoDoCalendário,MONTH(NovDom1+25)=11),NovDom1+25,\"\"))","v":"2019-11-20"},{"$f":"IF(DAY(NovDom1)=1,IF(AND(YEAR(NovDom1+19)=AnoDoCalendário,MONTH(NovDom1+19)=11),NovDom1+19,\"\"),IF(AND(YEAR(NovDom1+26)=AnoDoCalendário,MONTH(NovDom1+26)=11),NovDom1+26,\"\"))","v":"2019-11-21"},{"$f":"IF(DAY(NovDom1)=1,IF(AND(YEAR(NovDom1+20)=AnoDoCalendário,MONTH(NovDom1+20)=11),NovDom1+20,\"\"),IF(AND(YEAR(NovDom1+27)=AnoDoCalendário,MONTH(NovDom1+27)=11),NovDom1+27,\"\"))","v":"2019-11-22"},{"$f":"IF(DAY(NovDom1)=1,IF(AND(YEAR(NovDom1+21)=AnoDoCalendário,MONTH(NovDom1+21)=11),NovDom1+21,\"\"),IF(AND(YEAR(NovDom1+28)=AnoDoCalendário,MONTH(NovDom1+28)=11),NovDom1+28,\"\"))","v":"2019-11-23"},null,null,{"$f":"IF(DAY(DezDom1)=1,IF(AND(YEAR(DezDom1+15)=AnoDoCalendário,MONTH(DezDom1+15)=12),DezDom1+15,\"\"),IF(AND(YEAR(DezDom1+22)=AnoDoCalendário,MONTH(DezDom1+22)=12),DezDom1+22,\"\"))","v":"2019-12-22"},{"$f":"IF(DAY(DezDom1)=1,IF(AND(YEAR(DezDom1+16)=AnoDoCalendário,MONTH(DezDom1+16)=12),DezDom1+16,\"\"),IF(AND(YEAR(DezDom1+23)=AnoDoCalendário,MONTH(DezDom1+23)=12),DezDom1+23,\"\"))","v":"2019-12-23"},{"$f":"IF(DAY(DezDom1)=1,IF(AND(YEAR(DezDom1+17)=AnoDoCalendário,MONTH(DezDom1+17)=12),DezDom1+17,\"\"),IF(AND(YEAR(DezDom1+24)=AnoDoCalendário,MONTH(DezDom1+24)=12),DezDom1+24,\"\"))","v":"2019-12-24"},{"$f":"IF(DAY(DezDom1)=1,IF(AND(YEAR(DezDom1+18)=AnoDoCalendário,MONTH(DezDom1+18)=12),DezDom1+18,\"\"),IF(AND(YEAR(DezDom1+25)=AnoDoCalendário,MONTH(DezDom1+25)=12),DezDom1+25,\"\"))","v":"2019-12-25"},{"$f":"IF(DAY(DezDom1)=1,IF(AND(YEAR(DezDom1+19)=AnoDoCalendário,MONTH(DezDom1+19)=12),DezDom1+19,\"\"),IF(AND(YEAR(DezDom1+26)=AnoDoCalendário,MONTH(DezDom1+26)=12),DezDom1+26,\"\"))","v":"2019-12-26"},{"$f":"IF(DAY(DezDom1)=1,IF(AND(YEAR(DezDom1+20)=AnoDoCalendário,MONTH(DezDom1+20)=12),DezDom1+20,\"\"),IF(AND(YEAR(DezDom1+27)=AnoDoCalendário,MONTH(DezDom1+27)=12),DezDom1+27,\"\"))","v":"2019-12-27"},{"$f":"IF(DAY(DezDom1)=1,IF(AND(YEAR(DezDom1+21)=AnoDoCalendário,MONTH(DezDom1+21)=12),DezDom1+21,\"\"),IF(AND(YEAR(DezDom1+28)=AnoDoCalendário,MONTH(DezDom1+28)=12),DezDom1+28,\"\"))","v":"2019-12-28"}]
[null,null,{"$f":"IF(DAY(SetDom1)=1,IF(AND(YEAR(SetDom1+22)=AnoDoCalendário,MONTH(SetDom1+22)=9),SetDom1+22,\"\"),IF(AND(YEAR(SetDom1+29)=AnoDoCalendário,MONTH(SetDom1+29)=9),SetDom1+29,\"\"))","v":"2019-09-29"},{"$f":"IF(DAY(SetDom1)=1,IF(AND(YEAR(SetDom1+23)=AnoDoCalendário,MONTH(SetDom1+23)=9),SetDom1+23,\"\"),IF(AND(YEAR(SetDom1+30)=AnoDoCalendário,MONTH(SetDom1+30)=9),SetDom1+30,\"\"))","v":"2019-09-30"},{"$f":"IF(DAY(SetDom1)=1,IF(AND(YEAR(SetDom1+24)=AnoDoCalendário,MONTH(SetDom1+24)=9),SetDom1+24,\"\"),IF(AND(YEAR(SetDom1+31)=AnoDoCalendário,MONTH(SetDom1+31)=9),SetDom1+31,\"\"))","v":""},{"$f":"IF(DAY(SetDom1)=1,IF(AND(YEAR(SetDom1+25)=AnoDoCalendário,MONTH(SetDom1+25)=9),SetDom1+25,\"\"),IF(AND(YEAR(SetDom1+32)=AnoDoCalendário,MONTH(SetDom1+32)=9),SetDom1+32,\"\"))","v":""},{"$f":"IF(DAY(SetDom1)=1,IF(AND(YEAR(SetDom1+26)=AnoDoCalendário,MONTH(SetDom1+26)=9),SetDom1+26,\"\"),IF(AND(YEAR(SetDom1+33)=AnoDoCalendário,MONTH(SetDom1+33)=9),SetDom1+33,\"\"))","v":""},{"$f":"IF(DAY(SetDom1)=1,IF(AND(YEAR(SetDom1+27)=AnoDoCalendário,MONTH(SetDom1+27)=9),SetDom1+27,\"\"),IF(AND(YEAR(SetDom1+34)=AnoDoCalendário,MONTH(SetDom1+34)=9),SetDom1+34,\"\"))","v":""},{"$f":"IF(DAY(SetDom1)=1,IF(AND(YEAR(SetDom1+28)=AnoDoCalendário,MONTH(SetDom1+28)=9),SetDom1+28,\"\"),IF(AND(YEAR(SetDom1+35)=AnoDoCalendário,MONTH(SetDom1+35)=9),SetDom1+35,\"\"))","v":""},null,null,{"$f":"IF(DAY(OutDom1)=1,IF(AND(YEAR(OutDom1+22)=AnoDoCalendário,MONTH(OutDom1+22)=10),OutDom1+22,\"\"),IF(AND(YEAR(OutDom1+29)=AnoDoCalendário,MONTH(OutDom1+29)=10),OutDom1+29,\"\"))","v":"2019-10-27"},{"$f":"IF(DAY(OutDom1)=1,IF(AND(YEAR(OutDom1+23)=AnoDoCalendário,MONTH(OutDom1+23)=10),OutDom1+23,\"\"),IF(AND(YEAR(OutDom1+30)=AnoDoCalendário,MONTH(OutDom1+30)=10),OutDom1+30,\"\"))","v":"2019-10-28"},{"$f":"IF(DAY(OutDom1)=1,IF(AND(YEAR(OutDom1+24)=AnoDoCalendário,MONTH(OutDom1+24)=10),OutDom1+24,\"\"),IF(AND(YEAR(OutDom1+31)=AnoDoCalendário,MONTH(OutDom1+31)=10),OutDom1+31,\"\"))","v":"2019-10-29"},{"$f":"IF(DAY(OutDom1)=1,IF(AND(YEAR(OutDom1+25)=AnoDoCalendário,MONTH(OutDom1+25)=10),OutDom1+25,\"\"),IF(AND(YEAR(OutDom1+32)=AnoDoCalendário,MONTH(OutDom1+32)=10),OutDom1+32,\"\"))","v":"2019-10-30"},{"$f":"IF(DAY(OutDom1)=1,IF(AND(YEAR(OutDom1+26)=AnoDoCalendário,MONTH(OutDom1+26)=10),OutDom1+26,\"\"),IF(AND(YEAR(OutDom1+33)=AnoDoCalendário,MONTH(OutDom1+33)=10),OutDom1+33,\"\"))","v":"2019-10-31"},{"$f":"IF(DAY(OutDom1)=1,IF(AND(YEAR(OutDom1+27)=AnoDoCalendário,MONTH(OutDom1+27)=10),OutDom1+27,\"\"),IF(AND(YEAR(OutDom1+34)=AnoDoCalendário,MONTH(OutDom1+34)=10),OutDom1+34,\"\"))","v":""},{"$f":"IF(DAY(OutDom1)=1,IF(AND(YEAR(OutDom1+28)=AnoDoCalendário,MONTH(OutDom1+28)=10),OutDom1+28,\"\"),IF(AND(YEAR(OutDom1+35)=AnoDoCalendário,MONTH(OutDom1+35)=10),OutDom1+35,\"\"))","v":""},null,null,{"$f":"IF(DAY(NovDom1)=1,IF(AND(YEAR(NovDom1+22)=AnoDoCalendário,MONTH(NovDom1+22)=11),NovDom1+22,\"\"),IF(AND(YEAR(NovDom1+29)=AnoDoCalendário,MONTH(NovDom1+29)=11),NovDom1+29,\"\"))","v":"2019-11-24"},{"$f":"IF(DAY(NovDom1)=1,IF(AND(YEAR(NovDom1+23)=AnoDoCalendário,MONTH(NovDom1+23)=11),NovDom1+23,\"\"),IF(AND(YEAR(NovDom1+30)=AnoDoCalendário,MONTH(NovDom1+30)=11),NovDom1+30,\"\"))","v":"2019-11-25"},{"$f":"IF(DAY(NovDom1)=1,IF(AND(YEAR(NovDom1+24)=AnoDoCalendário,MONTH(NovDom1+24)=11),NovDom1+24,\"\"),IF(AND(YEAR(NovDom1+31)=AnoDoCalendário,MONTH(NovDom1+31)=11),NovDom1+31,\"\"))","v":"2019-11-26"},{"$f":"IF(DAY(NovDom1)=1,IF(AND(YEAR(NovDom1+25)=AnoDoCalendário,MONTH(NovDom1+25)=11),NovDom1+25,\"\"),IF(AND(YEAR(NovDom1+32)=AnoDoCalendário,MONTH(NovDom1+32)=11),NovDom1+32,\"\"))","v":"2019-11-27"},{"$f":"IF(DAY(NovDom1)=1,IF(AND(YEAR(NovDom1+26)=AnoDoCalendário,MONTH(NovDom1+26)=11),NovDom1+26,\"\"),IF(AND(YEAR(NovDom1+33)=AnoDoCalendário,MONTH(NovDom1+33)=11),NovDom1+33,\"\"))","v":"2019-11-28"},{"$f":"IF(DAY(NovDom1)=1,IF(AND(YEAR(NovDom1+27)=AnoDoCalendário,MONTH(NovDom1+27)=11),NovDom1+27,\"\"),IF(AND(YEAR(NovDom1+34)=AnoDoCalendário,MONTH(NovDom1+34)=11),NovDom1+34,\"\"))","v":"2019-11-29"},{"$f":"IF(DAY(NovDom1)=1,IF(AND(YEAR(NovDom1+28)=AnoDoCalendário,MONTH(NovDom1+28)=11),NovDom1+28,\"\"),IF(AND(YEAR(NovDom1+35)=AnoDoCalendário,MONTH(NovDom1+35)=11),NovDom1+35,\"\"))","v":"2019-11-30"},null,null,{"$f":"IF(DAY(DezDom1)=1,IF(AND(YEAR(DezDom1+22)=AnoDoCalendário,MONTH(DezDom1+22)=12),DezDom1+22,\"\"),IF(AND(YEAR(DezDom1+29)=AnoDoCalendário,MONTH(DezDom1+29)=12),DezDom1+29,\"\"))","v":"2019-12-29"},{"$f":"IF(DAY(DezDom1)=1,IF(AND(YEAR(DezDom1+23)=AnoDoCalendário,MONTH(DezDom1+23)=12),DezDom1+23,\"\"),IF(AND(YEAR(DezDom1+30)=AnoDoCalendário,MONTH(DezDom1+30)=12),DezDom1+30,\"\"))","v":"2019-12-30"},{"$f":"IF(DAY(DezDom1)=1,IF(AND(YEAR(DezDom1+24)=AnoDoCalendário,MONTH(DezDom1+24)=12),DezDom1+24,\"\"),IF(AND(YEAR(DezDom1+31)=AnoDoCalendário,MONTH(DezDom1+31)=12),DezDom1+31,\"\"))","v":"2019-12-31"},{"$f":"IF(DAY(DezDom1)=1,IF(AND(YEAR(DezDom1+25)=AnoDoCalendário,MONTH(DezDom1+25)=12),DezDom1+25,\"\"),IF(AND(YEAR(DezDom1+32)=AnoDoCalendário,MONTH(DezDom1+32)=12),DezDom1+32,\"\"))","v":""},{"$f":"IF(DAY(DezDom1)=1,IF(AND(YEAR(DezDom1+26)=AnoDoCalendário,MONTH(DezDom1+26)=12),DezDom1+26,\"\"),IF(AND(YEAR(DezDom1+33)=AnoDoCalendário,MONTH(DezDom1+33)=12),DezDom1+33,\"\"))","v":""},{"$f":"IF(DAY(DezDom1)=1,IF(AND(YEAR(DezDom1+27)=AnoDoCalendário,MONTH(DezDom1+27)=12),DezDom1+27,\"\"),IF(AND(YEAR(DezDom1+34)=AnoDoCalendário,MONTH(DezDom1+34)=12),DezDom1+34,\"\"))","v":""},{"$f":"IF(DAY(DezDom1)=1,IF(AND(YEAR(DezDom1+28)=AnoDoCalendário,MONTH(DezDom1+28)=12),DezDom1+28,\"\"),IF(AND(YEAR(DezDom1+35)=AnoDoCalendário,MONTH(DezDom1+35)=12),DezDom1+35,\"\"))","v":""}]
[null,null,{"$f":"IF(DAY(SetDom1)=1,IF(AND(YEAR(SetDom1+29)=AnoDoCalendário,MONTH(SetDom1+29)=9),SetDom1+29,\"\"),IF(AND(YEAR(SetDom1+36)=AnoDoCalendário,MONTH(SetDom1+36)=9),SetDom1+36,\"\"))","v":""},{"$f":"IF(DAY(SetDom1)=1,IF(AND(YEAR(SetDom1+30)=AnoDoCalendário,MONTH(SetDom1+30)=9),SetDom1+30,\"\"),IF(AND(YEAR(SetDom1+37)=AnoDoCalendário,MONTH(SetDom1+37)=9),SetDom1+37,\"\"))","v":""},{"$f":"IF(DAY(SetDom1)=1,IF(AND(YEAR(SetDom1+31)=AnoDoCalendário,MONTH(SetDom1+31)=9),SetDom1+31,\"\"),IF(AND(YEAR(SetDom1+38)=AnoDoCalendário,MONTH(SetDom1+38)=9),SetDom1+38,\"\"))","v":""},{"$f":"IF(DAY(SetDom1)=1,IF(AND(YEAR(SetDom1+32)=AnoDoCalendário,MONTH(SetDom1+32)=9),SetDom1+32,\"\"),IF(AND(YEAR(SetDom1+39)=AnoDoCalendário,MONTH(SetDom1+39)=9),SetDom1+39,\"\"))","v":""},{"$f":"IF(DAY(SetDom1)=1,IF(AND(YEAR(SetDom1+33)=AnoDoCalendário,MONTH(SetDom1+33)=9),SetDom1+33,\"\"),IF(AND(YEAR(SetDom1+40)=AnoDoCalendário,MONTH(SetDom1+40)=9),SetDom1+40,\"\"))","v":""},{"$f":"IF(DAY(SetDom1)=1,IF(AND(YEAR(SetDom1+34)=AnoDoCalendário,MONTH(SetDom1+34)=9),SetDom1+34,\"\"),IF(AND(YEAR(SetDom1+41)=AnoDoCalendário,MONTH(SetDom1+41)=9),SetDom1+41,\"\"))","v":""},{"$f":"IF(DAY(SetDom1)=1,IF(AND(YEAR(SetDom1+35)=AnoDoCalendário,MONTH(SetDom1+35)=9),SetDom1+35,\"\"),IF(AND(YEAR(SetDom1+42)=AnoDoCalendário,MONTH(SetDom1+42)=9),SetDom1+42,\"\"))","v":""},null,null,{"$f":"IF(DAY(OutDom1)=1,IF(AND(YEAR(OutDom1+29)=AnoDoCalendário,MONTH(OutDom1+29)=10),OutDom1+29,\"\"),IF(AND(YEAR(OutDom1+36)=AnoDoCalendário,MONTH(OutDom1+36)=10),OutDom1+36,\"\"))","v":""},{"$f":"IF(DAY(OutDom1)=1,IF(AND(YEAR(OutDom1+30)=AnoDoCalendário,MONTH(OutDom1+30)=10),OutDom1+30,\"\"),IF(AND(YEAR(OutDom1+37)=AnoDoCalendário,MONTH(OutDom1+37)=10),OutDom1+37,\"\"))","v":""},{"$f":"IF(DAY(OutDom1)=1,IF(AND(YEAR(OutDom1+31)=AnoDoCalendário,MONTH(OutDom1+31)=10),OutDom1+31,\"\"),IF(AND(YEAR(OutDom1+38)=AnoDoCalendário,MONTH(OutDom1+38)=10),OutDom1+38,\"\"))","v":""},{"$f":"IF(DAY(OutDom1)=1,IF(AND(YEAR(OutDom1+32)=AnoDoCalendário,MONTH(OutDom1+32)=10),OutDom1+32,\"\"),IF(AND(YEAR(OutDom1+39)=AnoDoCalendário,MONTH(OutDom1+39)=10),OutDom1+39,\"\"))","v":""},{"$f":"IF(DAY(OutDom1)=1,IF(AND(YEAR(OutDom1+33)=AnoDoCalendário,MONTH(OutDom1+33)=10),OutDom1+33,\"\"),IF(AND(YEAR(OutDom1+40)=AnoDoCalendário,MONTH(OutDom1+40)=10),OutDom1+40,\"\"))","v":""},{"$f":"IF(DAY(OutDom1)=1,IF(AND(YEAR(OutDom1+34)=AnoDoCalendário,MONTH(OutDom1+34)=10),OutDom1+34,\"\"),IF(AND(YEAR(OutDom1+41)=AnoDoCalendário,MONTH(OutDom1+41)=10),OutDom1+41,\"\"))","v":""},{"$f":"IF(DAY(OutDom1)=1,IF(AND(YEAR(OutDom1+35)=AnoDoCalendário,MONTH(OutDom1+35)=10),OutDom1+35,\"\"),IF(AND(YEAR(OutDom1+42)=AnoDoCalendário,MONTH(OutDom1+42)=10),OutDom1+42,\"\"))","v":""},null,null,{"$f":"IF(DAY(NovDom1)=1,IF(AND(YEAR(NovDom1+29)=AnoDoCalendário,MONTH(NovDom1+29)=11),NovDom1+29,\"\"),IF(AND(YEAR(NovDom1+36)=AnoDoCalendário,MONTH(NovDom1+36)=11),NovDom1+36,\"\"))","v":""},{"$f":"IF(DAY(NovDom1)=1,IF(AND(YEAR(NovDom1+30)=AnoDoCalendário,MONTH(NovDom1+30)=11),NovDom1+30,\"\"),IF(AND(YEAR(NovDom1+37)=AnoDoCalendário,MONTH(NovDom1+37)=11),NovDom1+37,\"\"))","v":""},{"$f":"IF(DAY(NovDom1)=1,IF(AND(YEAR(NovDom1+31)=AnoDoCalendário,MONTH(NovDom1+31)=11),NovDom1+31,\"\"),IF(AND(YEAR(NovDom1+38)=AnoDoCalendário,MONTH(NovDom1+38)=11),NovDom1+38,\"\"))","v":""},{"$f":"IF(DAY(NovDom1)=1,IF(AND(YEAR(NovDom1+32)=AnoDoCalendário,MONTH(NovDom1+32)=11),NovDom1+32,\"\"),IF(AND(YEAR(NovDom1+39)=AnoDoCalendário,MONTH(NovDom1+39)=11),NovDom1+39,\"\"))","v":""},{"$f":"IF(DAY(NovDom1)=1,IF(AND(YEAR(NovDom1+33)=AnoDoCalendário,MONTH(NovDom1+33)=11),NovDom1+33,\"\"),IF(AND(YEAR(NovDom1+40)=AnoDoCalendário,MONTH(NovDom1+40)=11),NovDom1+40,\"\"))","v":""},{"$f":"IF(DAY(NovDom1)=1,IF(AND(YEAR(NovDom1+34)=AnoDoCalendário,MONTH(NovDom1+34)=11),NovDom1+34,\"\"),IF(AND(YEAR(NovDom1+41)=AnoDoCalendário,MONTH(NovDom1+41)=11),NovDom1+41,\"\"))","v":""},{"$f":"IF(DAY(NovDom1)=1,IF(AND(YEAR(NovDom1+35)=AnoDoCalendário,MONTH(NovDom1+35)=11),NovDom1+35,\"\"),IF(AND(YEAR(NovDom1+42)=AnoDoCalendário,MONTH(NovDom1+42)=11),NovDom1+42,\"\"))","v":""},null,null,{"$f":"IF(DAY(DezDom1)=1,IF(AND(YEAR(DezDom1+29)=AnoDoCalendário,MONTH(DezDom1+29)=12),DezDom1+29,\"\"),IF(AND(YEAR(DezDom1+36)=AnoDoCalendário,MONTH(DezDom1+36)=12),DezDom1+36,\"\"))","v":""},{"$f":"IF(DAY(DezDom1)=1,IF(AND(YEAR(DezDom1+30)=AnoDoCalendário,MONTH(DezDom1+30)=12),DezDom1+30,\"\"),IF(AND(YEAR(DezDom1+37)=AnoDoCalendário,MONTH(DezDom1+37)=12),DezDom1+37,\"\"))","v":""},{"$f":"IF(DAY(DezDom1)=1,IF(AND(YEAR(DezDom1+31)=AnoDoCalendário,MONTH(DezDom1+31)=12),DezDom1+31,\"\"),IF(AND(YEAR(DezDom1+38)=AnoDoCalendário,MONTH(DezDom1+38)=12),DezDom1+38,\"\"))","v":""},{"$f":"IF(DAY(DezDom1)=1,IF(AND(YEAR(DezDom1+32)=AnoDoCalendário,MONTH(DezDom1+32)=12),DezDom1+32,\"\"),IF(AND(YEAR(DezDom1+39)=AnoDoCalendário,MONTH(DezDom1+39)=12),DezDom1+39,\"\"))","v":""},{"$f":"IF(DAY(DezDom1)=1,IF(AND(YEAR(DezDom1+33)=AnoDoCalendário,MONTH(DezDom1+33)=12),DezDom1+33,\"\"),IF(AND(YEAR(DezDom1+40)=AnoDoCalendário,MONTH(DezDom1+40)=12),DezDom1+40,\"\"))","v":""},{"$f":"IF(DAY(DezDom1)=1,IF(AND(YEAR(DezDom1+34)=AnoDoCalendário,MONTH(DezDom1+34)=12),DezDom1+34,\"\"),IF(AND(YEAR(DezDom1+41)=AnoDoCalendário,MONTH(DezDom1+41)=12),DezDom1+41,\"\"))","v":""},{"$f":"IF(DAY(DezDom1)=1,IF(AND(YEAR(DezDom1+35)=AnoDoCalendário,MONTH(DezDom1+35)=12),DezDom1+35,\"\"),IF(AND(YEAR(DezDom1+42)=AnoDoCalendário,MONTH(DezDom1+42)=12),DezDom1+42,\"\"))","v":""}]